Workbook

Sheet Datos (hidden)
A1: 1 | B1: 2 | C1: 3 | D1: 4 | E1: 5 | F1: 6 | G1: 7 | H1: 8 | I1: 9 | J1: 10 | K1: 11 | L1: 12 | M1: 13 | N1: 14 | O1: 15 | P1: 16 | Q1: 17 | R1: 18 | S1: 19 | T1: 20 | U1: 21 | V1: 22 | W1: 23 | X1: 24 | Y1: 25 | Z1: 26 | AA1: 27 | AB1: 28 | AC1: 29 | AD1: 30 | AE1: 31 | AF1: 32
B2: t correlativo global | C2: 3196800 | G2: Mes | H2: T° exterior | I2: Qsol_dif [W/m2] | J2: Qsol_dir [W/m2] | K2: Qgen Pers [W/m2] | L2: Qgen Ilum [W/m2] | M2: Qgen Equip [W/m2] | N2: TsolH | O2: TsolN | P2: TsolNE | Q2: TsolE | R2: TsolSE | S2: TsolS | T2: TsolSO | U2: TsolO | V2: TsolNO | W2: Clima [0, 1 o 2] | X2: N [RAH] | Y2: G total [W/m2] | Z2: TmaxD | AA2: TminD | AB2: TmaxN | AC2: TminN | AD2: Tsuelo | AE2: Infil RAH | AF2: Cat. Mes
B3: h sol | C3: 17 | G3: =+IF(C2<86400*(C11+1),QUOTIENT(C2,C5)+1,QUOTIENT(C2-86400,C5)+1) -> 13 | H3: =INDIRECT(H36&35+32*($G$3-1)) -> 0 | I3: =INDIRECT(I36&35+32*($G$3-1)) -> 0 | J3: 0 | K3: 0 | L3: =INDIRECT(L36&35+32*($G$3-1)) -> 0 | M3: 0 | N3: 0 | O3: 0 | P3: 0 | Q3: 0 | R3: 0 | S3: 0 | T3: 0 | U3: 0 | V3: 0 | W3: 0 | X3: 0 | Y3: 0 | Z3: =INDIRECT("E"&13+32*($G$3-1)) -> 0 | AA3: =INDIRECT("E"&15+32*($G$3-1)) -> 0 | AB3: =INDIRECT("E"&17+32*($G$3-1)) -> 0 | AC3: =INDIRECT("E"&19+32*($G$3-1)) -> 0 | AD3: =INDIRECT("E"&21+32*($G$3-1)) -> 0 | AE3: =INDIRECT("E"&23+32*($G$3-1)) -> 0 | AF3: =INDIRECT("E"&25+32*($G$3-1)) -> 0
B4: Columna tiempo | C4: G
B5: t correlativo max mensual | C5: =IF(C2<86400*(C11+1),(C11+1)*86400,C11*86400) -> 259200
B6: t residual diario | C6: =$C$2-QUOTIENT($C$2,86400)*86400 -> 0
B7: Absortividad solar | C7: 0.6
B8: t residual horario | C8: =$C$6-QUOTIENT($C$6,3600)*3600 -> 0 | I8: Rad Ventanas: Sol Incidente*FS*FAV*FAR [W]
E9: Mes | F9: Tiempo [hrs] | G9: Tiempo [s] | H9: T° exterior | I9: Difuso | J9: Directo | K9: Qgen Pers [W/m2] | L9: Qgen Ilum [W/m2] | M9: Qgen Equip [W/m2] | N9: TsolH | O9: TsolN | P9: TsolNE | Q9: TsolE | R9: TsolSE | S9: TsolS | T9: TsolSO | U9: TsolO | V9: TsolNO | W9: Clima [0, 1 o 2] | X9: N [RAH] | Y9: G total [W/m2]
B10: Fila inicial intervalo | C10: =TRUNC($C$6/3600,0)+10+32*(E11-1) -> 10 | E10: Enero | F10: 0 | G10: 0 | H10: 14.4371828 | I10: 0 | J10: 0 | K10: 4.1 | L10: 0 | M10: 0 | N10: 14.4371828 | O10: 14.4371828 | P10: 14.4371828 | Q10: 14.4371828 | R10: 14.4371828 | S10: 14.4371828 | T10: 14.4371828 | U10: 14.4371828 | V10: 14.4371828 | W10: 0 | X10: 0.8262 | Y10: 0
B11: dias por mes | C11: 3 | E11: 1 | F11: 1 | G11: 3600 | H11: 13.42686022 | I11: 0 | J11: 0 | K11: 4.1 | L11: 0 | M11: 0 | N11: 13.42686022 | O11: 13.42686022 | P11: 13.42686022 | Q11: 13.42686022 | R11: 13.42686022 | S11: 13.42686022 | T11: 13.42686022 | U11: 13.42686022 | V11: 13.42686022 | W11: 0 | X11: 0.8262 | Y11: 0
E12: Tmax Dia | F12: 2 | G12: 7200 | H12: 12.8824086 | I12: 0 | J12: 0 | K12: 4.1 | L12: 0 | M12: 0 | N12: 12.8824086 | O12: 12.8824086 | P12: 12.8824086 | Q12: 12.8824086 | R12: 12.8824086 | S12: 12.8824086 | T12: 12.8824086 | U12: 12.8824086 | V12: 12.8824086 | W12: 0 | X12: 0.8262 | Y12: 0
E13: 26.33767742 | F13: 3 | G13: 10800 | H13: 12.3604086 | I13: 0 | J13: 0 | K13: 4.1 | L13: 0 | M13: 0 | N13: 12.3604086 | O13: 12.3604086 | P13: 12.3604086 | Q13: 12.3604086 | R13: 12.3604086 | S13: 12.3604086 | T13: 12.3604086 | U13: 12.3604086 | V13: 12.3604086 | W13: 0 | X13: 0.8262 | Y13: 0
E14: Tmin Dia | F14: 4 | G14: 14400 | H14: 11.95627957 | I14: 0 | J14: 0 | K14: 4.1 | L14: 0 | M14: 0 | N14: 11.95627957 | O14: 11.95627957 | P14: 11.95627957 | Q14: 11.95627957 | R14: 11.95627957 | S14: 11.95627957 | T14: 11.95627957 | U14: 11.95627957 | V14: 11.95627957 | W14: 0 | X14: 0.8262 | Y14: 0
E15: 21.33767742 | F15: 5 | G15: 18000 | H15: 12.1807957 | I15: 0 | J15: 0 | K15: 4.1 | L15: 0 | M15: 0 | N15: 12.1807957 | O15: 12.1807957 | P15: 12.1807957 | Q15: 12.1807957 | R15: 12.1807957 | S15: 12.1807957 | T15: 12.1807957 | U15: 12.1807957 | V15: 12.1807957 | W15: 0 | X15: 0.8262 | Y15: 0
E16: Tmax Noche | F16: 6 | G16: 21600 | H16: 14.34737634 | I16: 216.6575445 | J16: 0 | K16: 3.28 | L16: 0 | M16: 0 | N16: 14.34737634 | O16: 14.34737634 | P16: 14.34737634 | Q16: 14.34737634 | R16: 14.34737634 | S16: 14.34737634 | T16: 14.34737634 | U16: 14.34737634 | V16: 14.34737634 | W16: 0 | X16: 0.8262 | Y16: 12.4516129
E17: 26.33767742 | F17: 7 | G17: 25200 | H17: 16.73286022 | I17: 1894.350292 | J17: 315.7602703 | K17: 3.936 | L17: 0 | M17: 0 | N17: 16.73286022 | O17: 16.73286022 | P17: 16.73286022 | Q17: 16.73286022 | R17: 16.73286022 | S17: 16.73286022 | T17: 16.73286022 | U17: 16.73286022 | V17: 16.73286022 | W17: 0 | X17: 0.8262 | Y17: 191.2903226
E18: Tmin Noche | F18: 8 | G18: 28800 | H18: 19.21937634 | I18: 2348.994362 | J18: 1007.343234 | K18: 1.968 | L18: 0 | M18: 0 | N18: 19.21937634 | O18: 19.21937634 | P18: 19.21937634 | Q18: 19.21937634 | R18: 19.21937634 | S18: 19.21937634 | T18: 19.21937634 | U18: 19.21937634 | V18: 19.21937634 | W18: 0 | X18: 3.8262 | Y18: 397.9354839
E19: 19.33767742 | F19: 9 | G19: 32400 | H19: 21.47015054 | I19: 3198.785871 | J19: 1622.550524 | K19: 1.23 | L19: 0 | M19: 0 | N19: 21.47015054 | O19: 21.47015054 | P19: 21.47015054 | Q19: 21.47015054 | R19: 21.47015054 | S19: 21.47015054 | T19: 21.47015054 | U19: 21.47015054 | V19: 21.47015054 | W19: 0 | X19: 3.8262 | Y19: 607.3548387
E20: Tsuelo | F20: 10 | G20: 36000 | H20: 23.46834409 | I20: 4095.164365 | J20: 2052.009209 | K20: 1.23 | L20: 0 | M20: 0 | N20: 23.46834409 | O20: 23.46834409 | P20: 23.46834409 | Q20: 23.46834409 | R20: 23.46834409 | S20: 23.46834409 | T20: 23.46834409 | U20: 23.46834409 | V20: 23.46834409 | W20: 0 | X20: 3.8262 | Y20: 770.9677419
E21: 19.36344086 | F21: 11 | G21: 39600 | H21: 24.84350538 | I21: 4921.381737 | J21: 2330.94108 | K21: 1.23 | L21: 0 | M21: 0 | N21: 24.84350538 | O21: 24.84350538 | P21: 24.84350538 | Q21: 24.84350538 | R21: 24.84350538 | S21: 24.84350538 | T21: 24.84350538 | U21: 24.84350538 | V21: 24.84350538 | W21: 0 | X21: 3.8262 | Y21: 891.2580645
E22: Infil RAH | F22: 12 | G22: 43200 | H22: 25.89873118 | I22: 5988.392079 | J22: 887.4757296 | K22: 1.23 | L22: 0 | M22: 0 | N22: 25.89873118 | O22: 25.89873118 | P22: 25.89873118 | Q22: 25.89873118 | R22: 25.89873118 | S22: 25.89873118 | T22: 25.89873118 | U22: 25.89873118 | V22: 25.89873118 | W22: 0 | X22: 0.8262 | Y22: 876.8387097
E23: 0 | F23: 13 | G23: 46800 | H23: 26.49369892 | I23: 6101.772453 | J23: 2125.238444 | K23: 1.23 | L23: 0 | M23: 0 | N23: 26.49369892 | O23: 26.49369892 | P23: 26.49369892 | Q23: 26.49369892 | R23: 26.49369892 | S23: 26.49369892 | T23: 26.49369892 | U23: 26.49369892 | V23: 26.49369892 | W23: 0 | X23: 0.8262 | Y23: 883.516129
E24: Cat Mes | F24: 14 | G24: 50400 | H24: 26.63963441 | I24: 5404.651545 | J24: 2028.870627 | K24: 1.23 | L24: 0 | M24: 0 | N24: 26.63963441 | O24: 26.63963441 | P24: 26.63963441 | Q24: 26.63963441 | R24: 26.63963441 | S24: 26.63963441 | T24: 26.63963441 | U24: 26.63963441 | V24: 26.63963441 | W24: 0 | X24: 3.8262 | Y24: 819.2903226
E25: v | F25: 15 | G25: 54000 | H25: 26.29724731 | I25: 4641.859827 | J25: 1757.136543 | K25: 1.23 | L25: 0 | M25: 0 | N25: 26.29724731 | O25: 26.29724731 | P25: 26.29724731 | Q25: 26.29724731 | R25: 26.29724731 | S25: 26.29724731 | T25: 26.29724731 | U25: 26.29724731 | V25: 26.29724731 | W25: 0 | X25: 3.8262 | Y25: 707.3225806
F26: 16 | G26: 57600 | H26: 25.38234409 | I26: 3603.475223 | J26: 1360.343024 | K26: 1.476 | L26: 0 | M26: 0 | N26: 25.38234409 | O26: 25.38234409 | P26: 25.38234409 | Q26: 25.38234409 | R26: 25.38234409 | S26: 25.38234409 | T26: 25.38234409 | U26: 25.38234409 | V26: 25.38234409 | W26: 0 | X26: 3.8262 | Y26: 548.1612903
F27: 17 | G27: 61200 | H27: 23.93421505 | I27: 2552.180972 | J27: 894.9726731 | K27: 2.46 | L27: 0 | M27: 0 | N27: 23.93421505 | O27: 23.93421505 | P27: 23.93421505 | Q27: 23.93421505 | R27: 23.93421505 | S27: 23.93421505 | T27: 23.93421505 | U27: 23.93421505 | V27: 23.93421505 | W27: 0 | X27: 3.8262 | Y27: 371.0645161
F28: 18 | G28: 64800 | H28: 22.17737634 | I28: 1873.5826 | J28: 289.3607737 | K28: 2.46 | L28: 0 | M28: 0 | N28: 22.17737634 | O28: 22.17737634 | P28: 22.17737634 | Q28: 22.17737634 | R28: 22.17737634 | S28: 22.17737634 | T28: 22.17737634 | U28: 22.17737634 | V28: 22.17737634 | W28: 0 | X28: 0.8262 | Y28: 180.2258065
F29: 19 | G29: 68400 | H29: 20.82466667 | I29: 226.1994571 | J29: 0 | K29: 3.69 | L29: 0 | M29: 0 | N29: 20.82466667 | O29: 20.82466667 | P29: 20.82466667 | Q29: 20.82466667 | R29: 20.82466667 | S29: 20.82466667 | T29: 20.82466667 | U29: 20.82466667 | V29: 20.82466667 | W29: 0 | X29: 0.8262 | Y29: 13
F30: 20 | G30: 72000 | H30: 19.46634409 | I30: 0 | J30: 0 | K30: 4.428 | L30: 1.5 | M30: 0 | N30: 19.46634409 | O30: 19.46634409 | P30: 19.46634409 | Q30: 19.46634409 | R30: 19.46634409 | S30: 19.46634409 | T30: 19.46634409 | U30: 19.46634409 | V30: 19.46634409 | W30: 0 | X30: 0.8262 | Y30: 0
F31: 21 | G31: 75600 | H31: 18.11363441 | I31: 0 | J31: 0 | K31: 4.92 | L31: 1.5 | M31: 0 | N31: 18.11363441 | O31: 18.11363441 | P31: 18.11363441 | Q31: 18.11363441 | R31: 18.11363441 | S31: 18.11363441 | T31: 18.11363441 | U31: 18.11363441 | V31: 18.11363441 | W31: 0 | X31: 3.8262 | Y31: 0
F32: 22 | G32: 79200 | H32: 16.76653763 | I32: 0 | J32: 0 | K32: 4.1 | L32: 0 | M32: 0 | N32: 16.76653763 | O32: 16.76653763 | P32: 16.76653763 | Q32: 16.76653763 | R32: 16.76653763 | S32: 16.76653763 | T32: 16.76653763 | U32: 16.76653763 | V32: 16.76653763 | W32: 0 | X32: 3.8262 | Y32: 0
F33: 23 | G33: 82800 | H33: 15.40260215 | I33: 0 | J33: 0 | K33: 4.1 | L33: 0 | M33: 0 | N33: 15.40260215 | O33: 15.40260215 | P33: 15.40260215 | Q33: 15.40260215 | R33: 15.40260215 | S33: 15.40260215 | T33: 15.40260215 | U33: 15.40260215 | V33: 15.40260215 | W33: 0 | X33: 0.8262 | Y33: 0
F34: 24 | G34: 86400 | H34: 14.4371828 | I34: 0 | J34: 0 | K34: 4.1 | L34: 0 | M34: 0 | N34: 14.4371828 | O34: 14.4371828 | P34: 14.4371828 | Q34: 14.4371828 | R34: 14.4371828 | S34: 14.4371828 | T34: 14.4371828 | U34: 14.4371828 | V34: 14.4371828 | W34: 0 | X34: 0.8262 | Y34: 0
G35: Valor Variable | H35: =+INDIRECT(H36&$C10)+((INDIRECT(H36&$C10+1)-INDIRECT(H36&$C10))/(INDIRECT($C$4&$C10+1)-INDIRECT($C$4&$C10)))*($C$6-INDIRECT($C$4&$C10)) -> 14.4371828 | I35: =+INDIRECT(I36&$C10)+((INDIRECT(I36&$C10+1)-INDIRECT(I36&$C10))/(INDIRECT($C$4&$C10+1)-INDIRECT($C$4&$C10)))*($C$6-INDIRECT($C$4&$C10)) -> 0 | J35: 0 | K35: 4.1 | L35: 0 | M35: =+INDIRECT(M36&$C10)+((INDIRECT(M36&$C10+1)-INDIRECT(M36&$C10))/(INDIRECT($C$4&$C10+1)-INDIRECT($C$4&$C10)))*($C$6-INDIRECT($C$4&$C10)) -> 0 | N35: =+INDIRECT(N36&$C10)+((INDIRECT(N36&$C10+1)-INDIRECT(N36&$C10))/(INDIRECT($C$4&$C10+1)-INDIRECT($C$4&$C10)))*($C$6-INDIRECT($C$4&$C10)) -> 14.4371828 | O35: 14.4371828 | P35: 14.4371828 | Q35: 14.4371828 | R35: 14.4371828 | S35: 14.4371828 | T35: 14.4371828 | U35: 14.4371828 | V35: 14.4371828 | W35: =+INDIRECT(W36&$C10) -> 0 | X35: 0.8262 | Y35: 0
H36: =MID(ADDRESS(ROW(),COLUMN()),2,1) -> H | I36: =MID(ADDRESS(ROW(),COLUMN()),2,1) -> I | J36: J | K36: K | L36: L | M36: M | N36: N | O36: O | P36: P | Q36: Q | R36: R | S36: S | T36: T | U36: U | V36: V | W36: W | X36: X | Y36: Y
G37: Aext | H37: =+MAX(H10:H33)-MIN(H10:H33) -> 14.68335484 | I37: °C
G38: Text_media | H38: =+AVERAGE(H10:H33) -> 19.36344086 | I38: °C
G39: Sol Peak | H39: =+MAX(I10:I34) -> 6101.772453
I40: Rad Ventanas: Sol Incidente*FS*FAV*FAR [W]
E41: Mes | F41: Tiempo [hrs] | G41: Tiempo [s] | H41: T° exterior | I41: Difuso | J41: Directo | K41: Qgen Pers [W/m2] | L41: Qgen Ilum [W/m2] | M41: Qgen Equip [W/m2] | N41: TsolH | O41: TsolN | P41: TsolNE | Q41: TsolE | R41: TsolSE | S41: TsolS | T41: TsolSO | U41: TsolO | V41: TsolNO | W41: Clima [0, 1 o 2] | X41: N [RAH] | Y41: G total [W/m2]
B42: Fila inicial intervalo | C42: =TRUNC($C$6/3600,0)+10+32*(E43-1) -> 42 | E42: Febrero | F42: 0 | G42: 0 | H42: 14.09017857 | I42: 0 | J42: 0 | K42: 4.1 | L42: 0 | M42: 0 | N42: 10.38429622 | O42: 14.09017857 | P42: 14.09017857 | Q42: 14.09017857 | R42: 14.09017857 | S42: 14.09017857 | T42: 14.09017857 | U42: 14.09017857 | V42: 14.09017857 | W42: 0 | X42: 0.8262 | Y42: 0
E43: 2 | F43: 1 | G43: 3600 | H43: 13.06517857 | I43: 0 | J43: 0 | K43: 4.1 | L43: 0 | M43: 0 | N43: 9.359296218 | O43: 13.06517857 | P43: 13.06517857 | Q43: 13.06517857 | R43: 13.06517857 | S43: 13.06517857 | T43: 13.06517857 | U43: 13.06517857 | V43: 13.06517857 | W43: 0 | X43: 0.8262 | Y43: 0
E44: Tmax Dia | F44: 2 | G44: 7200 | H44: 12.50892857 | I44: 0 | J44: 0 | K44: 4.1 | L44: 0 | M44: 0 | N44: 8.803046218 | O44: 12.50892857 | P44: 12.50892857 | Q44: 12.50892857 | R44: 12.50892857 | S44: 12.50892857 | T44: 12.50892857 | U44: 12.50892857 | V44: 12.50892857 | W44: 0 | X44: 0.8262 | Y44: 0
E45: 26.20796429 | F45: 3 | G45: 10800 | H45: 11.97142857 | I45: 0 | J45: 0 | K45: 4.1 | L45: 0 | M45: 0 | N45: 8.265546218 | O45: 11.97142857 | P45: 11.97142857 | Q45: 11.97142857 | R45: 11.97142857 | S45: 11.97142857 | T45: 11.97142857 | U45: 11.97142857 | V45: 11.97142857 | W45: 0 | X45: 0.8262 | Y45: 0
E46: Tmin Dia | F46: 4 | G46: 14400 | H46: 11.59642857 | I46: 0 | J46: 0 | K46: 4.1 | L46: 0 | M46: 0 | N46: 7.890546218 | O46: 11.59642857 | P46: 11.59642857 | Q46: 11.59642857 | R46: 11.59642857 | S46: 11.59642857 | T46: 11.59642857 | U46: 11.59642857 | V46: 11.59642857 | W46: 0 | X46: 0.8262 | Y46: 0
E47: 21.20796429 | F47: 5 | G47: 18000 | H47: 11.60267857 | I47: 0 | J47: 0 | K47: 4.1 | L47: 0 | M47: 0 | N47: 7.896796218 | O47: 11.60267857 | P47: 11.60267857 | Q47: 11.60267857 | R47: 11.60267857 | S47: 11.60267857 | T47: 11.60267857 | U47: 11.60267857 | V47: 11.60267857 | W47: 0 | X47: 0.8262 | Y47: 0
E48: Tmax Noche | F48: 6 | G48: 21600 | H48: 13.40892857 | I48: 70.84268712 | J48: 0 | K48: 3.28 | L48: 0 | M48: 0 | N48: 9.870693277 | O48: 13.46246342 | P48: 13.49163414 | Q48: 13.50607271 | R48: 13.49056306 | S48: 13.46094869 | T48: 13.49056306 | U48: 13.50607271 | V48: 13.49163414 | W48: 0 | X48: 0.8262 | Y48: 4.071428571
E49: 26.20796429 | F49: 7 | G49: 25200 | H49: 15.80892857 | I49: 1481.482159 | J49: 189.5832008 | K49: 3.936 | L49: 0 | M49: 0 | N49: 18.02069328 | O49: 17.69861467 | P49: 18.72828993 | Q49: 19.23794627 | R49: 18.6904829 | S49: 17.64514745 | T49: 18.6904829 | U49: 19.23794627 | V49: 18.72828993 | W49: 0 | X49: 0.8262 | Y49: 143.7142857
E50: Tmin Noche | F50: 8 | G50: 28800 | H50: 18.34642857 | I50: 2278.773102 | J50: 710.1278063 | K50: 1.968 | L50: 0 | M50: 0 | N50: 29.06701681 | O50: 22.95324284 | P50: 25.46346013 | Q50: 26.70593742 | R50: 25.3712914 | S50: 22.82289657 | T50: 25.3712914 | U50: 26.70593742 | V50: 25.46346013 | W50: 0 | X50: 0.8262 | Y50: 350.3571429
E51: 19.20796429 | F51: 9 | G51: 32400 | H51: 20.69017857 | I51: 3373.727617 | J51: 1184.06062 | K51: 1.23 | L51: 0 | M51: 0 | N51: 39.86223739 | O51: 27.99580645 | P51: 31.97658631 | Q51: 33.94694505 | R51: 31.8304223 | S51: 27.78909933 | T51: 31.8304223 | U51: 33.94694505 | V51: 31.97658631 | W51: 0 | X51: 0.8262 | Y51: 555.6071429
E52: Tsuelo | F52: 10 | G52: 36000 | H52: 22.72142857 | I52: 4304.003956 | J52: 1528.125628 | K52: 1.23 | L52: 0 | M52: 0 | N52: 48.42289916 | O52: 32.11209777 | P52: 37.22900044 | Q52: 39.76170365 | R52: 37.04112092 | S52: 31.84639601 | T52: 37.04112092 | U52: 39.76170365 | V52: 37.22900044 | W52: 0 | X52: 3.8262 | Y52: 714.1785714
E53: 18.8547619 | F53: 11 | G53: 39600 | H53: 24.28392857 | I53: 5316.930097 | J53: 1695.189474 | K53: 1.23 | L53: 0 | M53: 0 | N53: 54.48392857 | O53: 35.11111611 | P53: 41.01076644 | Q53: 43.93090472 | R53: 40.79414644 | S53: 34.80476916 | T53: 40.79414644 | U53: 43.93090472 | V53: 41.01076644 | W53: 0 | X53: 3.8262 | Y53: 823.4285714
E54: Infil RAH | F54: 12 | G54: 43200 | H54: 25.47142857 | I54: 5917.228656 | J54: 664.8176787 | K54: 1.23 | L54: 0 | M54: 0 | N54: 56.88319328 | O54: 36.68556972 | P54: 42.79606807 | Q54: 45.82056938 | R54: 42.57170627 | S54: 36.36827422 | T54: 42.57170627 | U54: 45.82056938 | V54: 42.79606807 | W54: 0 | X54: 3.8262 | Y54: 852.8571429
E55: 0 | F55: 13 | G55: 46800 | H55: 26.13392857 | I55: 6039.649791 | J55: 1889.17821 | K55: 1.23 | L55: 0 | M55: 0 | N55: 58.03834034 | O55: 37.50538703 | P55: 43.70160636 | Q55: 46.76853681 | R55: 43.4740971 | S55: 37.18364036 | T55: 43.4740971 | U55: 46.76853681 | V55: 43.70160636 | W55: 0 | X55: 3.8262 | Y55: 864.8214286
E56: Cat Mes | F56: 14 | G56: 50400 | H56: 26.36517857 | I56: 5485.336835 | J56: 1737.480953 | K56: 1.23 | L56: 0 | M56: 0 | N56: 55.24606092 | O56: 36.77113141 | P56: 42.44125423 | Q56: 45.24778373 | R56: 42.23306189 | S56: 36.47670297 | T56: 42.23306189 | U56: 45.24778373 | V56: 42.44125423 | W56: 0 | X56: 0.8262 | Y56: 791.3928571
E57: v | F57: 15 | G57: 54000 | H57: 26.04017857 | I57: 4555.060496 | J57: 1548.12003 | K57: 1.23 | L57: 0 | M57: 0 | N57: 50.58282563 | O57: 35.0607999 | P57: 39.97606635 | Q57: 42.40896609 | R57: 39.7955904 | S57: 34.80556836 | T57: 39.7955904 | U57: 42.40896609 | V57: 39.97606635 | W57: 0 | X57: 3.8262 | Y57: 686.0357143
F58: 16 | G58: 57600 | H58: 25.02767857 | I58: 3461.970263 | J58: 1142.031908 | K58: 1.476 | L58: 0 | M58: 0 | N58: 42.53209034 | O58: 31.80077563 | P58: 35.49138358 | Q58: 37.31811651 | R58: 35.35587394 | S58: 31.60913606 | T58: 35.35587394 | U58: 37.31811651 | V58: 35.49138358 | W58: 0 | X58: 3.8262 | Y58: 515.1071429
F59: 17 | G59: 61200 | H59: 23.47767857 | I59: 2281.258811 | J59: 693.0631956 | K59: 2.46 | L59: 0 | M59: 0 | N59: 33.07032563 | O59: 27.72430665 | P59: 30.03826128 | Q59: 31.18359483 | R59: 29.95329881 | S59: 27.60415157 | T59: 29.95329881 | U59: 31.18359483 | V59: 30.03826128 | W59: 0 | X59: 3.8262 | Y59: 322.9642857
F60: 18 | G60: 64800 | H60: 21.71517857 | I60: 1396.968076 | J60: 176.4911488 | K60: 2.46 | L60: 0 | M60: 0 | N60: 23.32694328 | O60: 23.41326628 | P60: 24.33854107 | Q60: 24.79652251 | R60: 24.30456736 | S60: 23.36522019 | T60: 24.30456736 | U60: 24.79652251 | V60: 24.33854107 | W60: 0 | X60: 3.8262 | Y60: 129.1428571
F61: 19 | G61: 68400 | H61: 20.35892857 | I61: 50.33559348 | J61: 0 | K61: 3.69 | L61: 0 | M61: 0 | N61: 16.77216387 | O61: 20.39696649 | P61: 20.41769305 | Q61: 20.42795204 | R61: 20.41693203 | S61: 20.39589023 | T61: 20.41693203 | U61: 20.42795204 | V61: 20.41769305 | W61: 0 | X61: 0.8262 | Y61: 2.892857143
F62: 20 | G62: 72000 | H62: 19.00267857 | I62: 0 | J62: 0 | K62: 4.428 | L62: 1.5 | M62: 0 | N62: 15.29679622 | O62: 19.00267857 | P62: 19.00267857 | Q62: 19.00267857 | R62: 19.00267857 | S62: 19.00267857 | T62: 19.00267857 | U62: 19.00267857 | V62: 19.00267857 | W62: 0 | X62: 0.8262 | Y62: 0
F63: 21 | G63: 75600 | H63: 17.64017857 | I63: 0 | J63: 0 | K63: 4.92 | L63: 1.5 | M63: 0 | N63: 13.93429622 | O63: 17.64017857 | P63: 17.64017857 | Q63: 17.64017857 | R63: 17.64017857 | S63: 17.64017857 | T63: 17.64017857 | U63: 17.64017857 | V63: 17.64017857 | W63: 0 | X63: 0.8262 | Y63: 0
F64: 22 | G64: 79200 | H64: 16.27767857 | I64: 0 | J64: 0 | K64: 4.1 | L64: 0 | M64: 0 | N64: 12.57179622 | O64: 16.27767857 | P64: 16.27767857 | Q64: 16.27767857 | R64: 16.27767857 | S64: 16.27767857 | T64: 16.27767857 | U64: 16.27767857 | V64: 16.27767857 | W64: 0 | X64: 3.8262 | Y64: 0
F65: 23 | G65: 82800 | H65: 14.90892857 | I65: 0 | J65: 0 | K65: 4.1 | L65: 0 | M65: 0 | N65: 11.20304622 | O65: 14.90892857 | P65: 14.90892857 | Q65: 14.90892857 | R65: 14.90892857 | S65: 14.90892857 | T65: 14.90892857 | U65: 14.90892857 | V65: 14.90892857 | W65: 0 | X65: 0.8262 | Y65: 0
F66: 24 | G66: 86400 | H66: 14.09017857 | I66: 0 | J66: 0 | K66: 4.1 | L66: 0 | M66: 0 | N66: 10.38429622 | O66: 14.09017857 | P66: 14.09017857 | Q66: 14.09017857 | R66: 14.09017857 | S66: 14.09017857 | T66: 14.09017857 | U66: 14.09017857 | V66: 14.09017857 | W66: 0 | X66: 0.8262 | Y66: 0
G67: Valor Variable | H67: =+INDIRECT(H68&$C42)+((INDIRECT(H68&$C42+1)-INDIRECT(H68&$C42))/(INDIRECT($C$4&$C42+1)-INDIRECT($C$4&$C42)))*($C$6-INDIRECT($C$4&$C42)) -> 14.09017857 | I67: =+INDIRECT(I68&$C42)+((INDIRECT(I68&$C42+1)-INDIRECT(I68&$C42))/(INDIRECT($C$4&$C42+1)-INDIRECT($C$4&$C42)))*($C$6-INDIRECT($C$4&$C42)) -> 0 | J67: 0 | K67: 4.1 | L67: 0 | M67: =+INDIRECT(M68&$C42)+((INDIRECT(M68&$C42+1)-INDIRECT(M68&$C42))/(INDIRECT($C$4&$C42+1)-INDIRECT($C$4&$C42)))*($C$6-INDIRECT($C$4&$C42)) -> 0 | N67: 10.38429622 | O67: 14.09017857 | P67: 14.09017857 | Q67: 14.09017857 | R67: 14.09017857 | S67: 14.09017857 | T67: 14.09017857 | U67: 14.09017857 | V67: 14.09017857 | W67: =+INDIRECT(W68&$C42) -> 0 | X67: 0.8262 | Y67: 0
H68: =MID(ADDRESS(ROW(),COLUMN()),2,1) -> H | I68: =MID(ADDRESS(ROW(),COLUMN()),2,1) -> I | J68: J | K68: K | L68: L | M68: M | N68: N | O68: O | P68: P | Q68: Q | R68: R | S68: S | T68: T | U68: U | V68: V | W68: W | X68: X | Y68: Y
I72: Rad Ventanas: Sol Incidente*FS*FAV*FAR [W]
E73: Mes | F73: Tiempo [hrs] | G73: Tiempo [s] | H73: T° exterior | I73: Difuso | J73: Directo | K73: Qgen Pers [W/m2] | L73: Qgen Ilum [W/m2] | M73: Qgen Equip [W/m2] | N73: TsolH | O73: TsolN | P73: TsolNE | Q73: TsolE | R73: TsolSE | S73: TsolS | T73: TsolSO | U73: TsolO | V73: TsolNO | W73: Clima [0, 1 o 2] | X73: N [RAH] | Y73: G total [W/m2]
B74: Fila inicial intervalo | C74: =TRUNC($C$6/3600,0)+10+32*(E75-1) -> 74 | E74: Marzo | F74: 0 | G74: 0 | H74: 13.06891129 | I74: 0 | J74: 0 | K74: 4.1 | L74: 0 | M74: 0 | N74: 9.363028937 | O74: 13.06891129 | P74: 13.06891129 | Q74: 13.06891129 | R74: 13.06891129 | S74: 13.06891129 | T74: 13.06891129 | U74: 13.06891129 | V74: 13.06891129 | W74: 0 | X74: 0.8262 | Y74: 0
E75: 3 | F75: 1 | G75: 3600 | H75: 12.08104032 | I75: 0 | J75: 0 | K75: 4.1 | L75: 0 | M75: 0 | N75: 8.37515797 | O75: 12.08104032 | P75: 12.08104032 | Q75: 12.08104032 | R75: 12.08104032 | S75: 12.08104032 | T75: 12.08104032 | U75: 12.08104032 | V75: 12.08104032 | W75: 0 | X75: 0.8262 | Y75: 0
E76: Tmax Dia | F76: 2 | G76: 7200 | H76: 11.39065323 | I76: 0 | J76: 0 | K76: 4.1 | L76: 0 | M76: 0 | N76: 7.684770873 | O76: 11.39065323 | P76: 11.39065323 | Q76: 11.39065323 | R76: 11.39065323 | S76: 11.39065323 | T76: 11.39065323 | U76: 11.39065323 | V76: 11.39065323 | W76: 0 | X76: 0.8262 | Y76: 0
E77: 25.82661492 | F77: 3 | G77: 10800 | H77: 10.89110484 | I77: 0 | J77: 0 | K77: 4.1 | L77: 0 | M77: 0 | N77: 7.185222486 | O77: 10.89110484 | P77: 10.89110484 | Q77: 10.89110484 | R77: 10.89110484 | S77: 10.89110484 | T77: 10.89110484 | U77: 10.89110484 | V77: 10.89110484 | W77: 0 | X77: 0.8262 | Y77: 0
E78: Tmin Dia | F78: 4 | G78: 14400 | H78: 10.46452419 | I78: 0 | J78: 0 | K78: 4.1 | L78: 0 | M78: 0 | N78: 6.758641841 | O78: 10.46452419 | P78: 10.46452419 | Q78: 10.46452419 | R78: 10.46452419 | S78: 10.46452419 | T78: 10.46452419 | U78: 10.46452419 | V78: 10.46452419 | W78: 0 | X78: 0.8262 | Y78: 0
E79: 20.82661492 | F79: 5 | G79: 18000 | H79: 10.31858871 | I79: 0 | J79: 0 | K79: 4.1 | L79: 0 | M79: 0 | N79: 6.612706357 | O79: 10.31858871 | P79: 10.31858871 | Q79: 10.31858871 | R79: 10.31858871 | S79: 10.31858871 | T79: 10.31858871 | U79: 10.31858871 | V79: 10.31858871 | W79: 0 | X79: 0.8262 | Y79: 0
E80: Tmax Noche | F80: 6 | G80: 21600 | H80: 11.40749194 | I80: 2.245155902 | J80: 0 | K80: 3.28 | L80: 0 | M80: 0 | N80: 7.706922676 | O80: 11.41004156 | P80: 11.41059587 | Q80: 11.41062881 | R80: 11.40977447 | S80: 11.40887992 | T80: 11.40977447 | U80: 11.41062881 | V80: 11.41059587 | W80: 0 | X80: 0.8262 | Y80: 0.1290322581
E81: 25.82661492 | F81: 7 | G81: 25200 | H81: 13.88278226 | I81: 703.2950863 | J81: 100.7693727 | K81: 3.936 | L81: 0 | M81: 0 | N81: 12.96494545 | O81: 15.22069897 | P81: 15.51157186 | Q81: 15.52885976 | R81: 15.08054128 | S81: 14.61112969 | T81: 15.08054128 | U81: 15.52885976 | V81: 15.51157186 | W81: 0 | X81: 0.8262 | Y81: 67.70967742
E82: Tmin Noche | F82: 8 | G82: 28800 | H82: 16.65555645 | I82: 1823.066592 | J82: 588.2977918 | K82: 1.968 | L82: 0 | M82: 0 | N82: 23.82424715 | O82: 21.8740053 | P82: 23.00853428 | Q82: 23.0759645 | R82: 21.32733023 | S82: 19.49642374 | T82: 21.32733023 | U82: 23.0759645 | V82: 23.00853428 | W82: 0 | X82: 0.8262 | Y82: 264.0967742
E83: 18.82661492 | F83: 9 | G83: 32400 | H83: 19.09716935 | I83: 2263.678438 | J83: 1274.148913 | K83: 1.23 | L83: 0 | M83: 0 | N83: 34.9567519 | O83: 28.4861704 | P83: 30.52740795 | Q83: 30.64872799 | R83: 27.50259597 | S83: 24.20844028 | T83: 27.50259597 | U83: 30.64872799 | V83: 30.52740795 | W83: 0 | X83: 0.8262 | Y83: 475.1612903
E84: Tsuelo | F84: 10 | G84: 36000 | H84: 21.35355645 | I84: 3224.605164 | J84: 1616.478909 | K84: 1.23 | L84: 0 | M84: 0 | N84: 43.30460009 | O84: 33.66570474 | P84: 36.34245588 | Q84: 36.5015474 | R84: 32.37590679 | S84: 28.05615721 | T84: 32.37590679 | U84: 36.5015474 | V84: 36.34245588 | W84: 0 | X84: 3.8262 | Y84: 623.0967742
E85: 17.35927419 | F85: 11 | G85: 39600 | H85: 22.79607258 | I85: 4414.537792 | J85: 1853.751475 | K85: 1.23 | L85: 0 | M85: 0 | N85: 50.20897581 | O85: 37.72923732 | P85: 40.97581662 | Q85: 41.16877562 | R85: 36.16486652 | S85: 30.92552644 | T85: 36.16486652 | U85: 41.16877562 | V85: 40.97581662 | W85: 0 | X85: 3.8262 | Y85: 755.7419355
E86: Infil RAH | F86: 12 | G86: 43200 | H86: 23.88497581 | I86: 4968.530011 | J86: 857.8793362 | K86: 1.23 | L86: 0 | M86: 0 | N86: 50.06789801 | O86: 38.22790192 | P86: 41.34615902 | Q86: 41.53149125 | R86: 36.72536343 | S86: 31.69311012 | T86: 36.72536343 | U86: 41.53149125 | V86: 41.34615902 | W86: 0 | X86: 3.8262 | Y86: 725.8709677
E87: 0 | F87: 13 | G87: 46800 | H87: 24.53607258 | I87: 5243.561609 | J87: 1884.617674 | K87: 1.23 | L87: 0 | M87: 0 | N87: 51.09755266 | O87: 39.06065961 | P87: 42.21841113 | Q87: 42.40609069 | R87: 37.53909066 | S87: 32.44310114 | T87: 37.53909066 | U87: 42.40609069 | V87: 42.21841113 | W87: 0 | X87: 3.8262 | Y87: 735.0645161
E88: Cat Mes | F88: 14 | G88: 50400 | H88: 24.69323387 | I88: 4787.233672 | J88: 1798.551832 | K88: 1.23 | L88: 0 | M88: 0 | N88: 49.35926803 | O88: 38.3082415 | P88: 41.2682438 | Q88: 41.44417023 | R88: 36.88195841 | S88: 32.10509721 | T88: 36.88195841 | U88: 41.44417023 | V88: 41.2682438 | W88: 0 | X88: 3.8262 | Y88: 689.0322581
E89: v | F89: 15 | G89: 54000 | H89: 24.23297581 | I89: 3747.1652 | J89: 1611.842219 | K89: 1.23 | L89: 0 | M89: 0 | N89: 44.66845968 | O89: 35.81784302 | P89: 38.33647794 | Q89: 38.48617189 | R89: 34.6042337 | S89: 30.5396526 | T89: 34.6042337 | U89: 38.48617189 | V89: 38.33647794 | W89: 0 | X89: 3.8262 | Y89: 586.2903226
F90: 16 | G90: 57600 | H90: 23.13284677 | I90: 2703.167706 | J90: 1220.761274 | K90: 1.476 | L90: 0 | M90: 0 | N90: 37.39186006 | O90: 31.75377272 | P90: 33.62802511 | Q90: 33.73942047 | R90: 30.85066042 | S90: 27.8259859 | T90: 30.85066042 | U90: 33.73942047 | V90: 33.62802511 | W90: 0 | X90: 3.8262 | Y90: 436.2903226
F91: 17 | G91: 61200 | H91: 21.43775 | I91: 1998.188753 | J91: 606.5258964 | K91: 2.46 | L91: 0 | M91: 0 | N91: 28.20795873 | O91: 26.46497683 | P91: 27.55793274 | Q91: 27.62289209 | R91: 25.93833382 | S91: 24.17451808 | T91: 25.93833382 | U91: 27.62289209 | V91: 27.55793274 | W91: 0 | X91: 3.8262 | Y91: 254.4193548
F92: 18 | G92: 64800 | H92: 19.94471774 | I92: 723.5014894 | J92: 86.44196343 | K92: 2.46 | L92: 0 | M92: 0 | N92: 18.98039137 | O92: 21.26032522 | P92: 21.54634792 | Q92: 21.56334755 | R92: 21.12250461 | S92: 20.66092027 | T92: 21.12250461 | U92: 21.56334755 | V92: 21.54634792 | W92: 0 | X92: 0.8262 | Y92: 66.58064516
F93: 19 | G93: 68400 | H93: 18.73794355 | I93: 3.929022828 | J93: 0 | K93: 3.69 | L93: 1.5 | M93: 0 | N93: 15.04135911 | O93: 18.7424054 | P93: 18.74337543 | Q93: 18.74343309 | R93: 18.74193798 | S93: 18.74037253 | T93: 18.74193798 | U93: 18.74343309 | V93: 18.74337543 | W93: 0 | X93: 0.8262 | Y93: 0.2258064516
F94: 20 | G94: 72000 | H94: 17.49749194 | I94: 0 | J94: 0 | K94: 4.428 | L94: 1.5 | M94: 0 | N94: 13.79160958 | O94: 17.49749194 | P94: 17.49749194 | Q94: 17.49749194 | R94: 17.49749194 | S94: 17.49749194 | T94: 17.49749194 | U94: 17.49749194 | V94: 17.49749194 | W94: 0 | X94: 0.8262 | Y94: 0
F95: 21 | G95: 75600 | H95: 16.28510484 | I95: 0 | J95: 0 | K95: 4.92 | L95: 1.5 | M95: 0 | N95: 12.57922249 | O95: 16.28510484 | P95: 16.28510484 | Q95: 16.28510484 | R95: 16.28510484 | S95: 16.28510484 | T95: 16.28510484 | U95: 16.28510484 | V95: 16.28510484 | W95: 0 | X95: 0.8262 | Y95: 0
F96: 22 | G96: 79200 | H96: 15.03904032 | I96: 0 | J96: 0 | K96: 4.1 | L96: 0 | M96: 0 | N96: 11.33315797 | O96: 15.03904032 | P96: 15.03904032 | Q96: 15.03904032 | R96: 15.03904032 | S96: 15.03904032 | T96: 15.03904032 | U96: 15.03904032 | V96: 15.03904032 | W96: 0 | X96: 3.8262 | Y96: 0
F97: 23 | G97: 82800 | H97: 13.79297581 | I97: 0 | J97: 0 | K97: 4.1 | L97: 0 | M97: 0 | N97: 10.08709345 | O97: 13.79297581 | P97: 13.79297581 | Q97: 13.79297581 | R97: 13.79297581 | S97: 13.79297581 | T97: 13.79297581 | U97: 13.79297581 | V97: 13.79297581 | W97: 0 | X97: 0.8262 | Y97: 0
F98: 24 | G98: 86400 | H98: 13.06891129 | I98: 0 | J98: 0 | K98: 4.1 | L98: 0 | M98: 0 | N98: 9.363028937 | O98: 13.06891129 | P98: 13.06891129 | Q98: 13.06891129 | R98: 13.06891129 | S98: 13.06891129 | T98: 13.06891129 | U98: 13.06891129 | V98: 13.06891129 | W98: 0 | X98: 0.8262 | Y98: 0
G99: Valor Variable | H99: =+INDIRECT(H100&$C74)+((INDIRECT(H100&$C74+1)-INDIRECT(H100&$C74))/(INDIRECT($C$4&$C74+1)-INDIRECT($C$4&$C74)))*($C$6-INDIRECT($C$4&$C74)) -> 13.06891129 | I99: =+INDIRECT(I100&$C74)+((INDIRECT(I100&$C74+1)-INDIRECT(I100&$C74))/(INDIRECT($C$4&$C74+1)-INDIRECT($C$4&$C74)))*($C$6-INDIRECT($C$4&$C74)) -> 0 | J99: 0 | K99: 4.1 | L99: 0 | M99: =+INDIRECT(M100&$C74)+((INDIRECT(M100&$C74+1)-INDIRECT(M100&$C74))/(INDIRECT($C$4&$C74+1)-INDIRECT($C$4&$C74)))*($C$6-INDIRECT($C$4&$C74)) -> 0 | N99: 9.363028937 | O99: 13.06891129 | P99: 13.06891129 | Q99: 13.06891129 | R99: 13.06891129 | S99: 13.06891129 | T99: 13.06891129 | U99: 13.06891129 | V99: 13.06891129 | W99: =+INDIRECT(W100&$C74) -> 0 | X99: 0.8262 | Y99: 0
H100: =MID(ADDRESS(ROW(),COLUMN()),2,1) -> H | I100: =MID(ADDRESS(ROW(),COLUMN()),2,1) -> I | J100: J | K100: K | L100: L | M100: M | N100: N | O100: O | P100: P | Q100: Q | R100: R | S100: S | T100: T | U100: U | V100: V | W100: W | X100: X | Y100: Y
I104: Rad Ventanas: Sol Incidente*FS*FAV*FAR [W]
E105: Mes | F105: Tiempo [hrs] | G105: Tiempo [s] | H105: T° exterior | I105: Difuso | J105: Directo | K105: Qgen Pers [W/m2] | L105: Qgen Ilum [W/m2] | M105: Qgen Equip [W/m2] | N105: TsolH | O105: TsolN | P105: TsolNE | Q105: TsolE | R105: TsolSE | S105: TsolS | T105: TsolSO | U105: TsolO | V105: TsolNO | W105: Clima [0, 1 o 2] | X105: N [RAH] | Y105: G total [W/m2]
B106: Fila inicial intervalo | C106: =TRUNC($C$6/3600,0)+10+32*(E107-1) -> 106 | E106: Abril | F106: 0 | G106: 0 | H106: 11.6928125 | I106: 0 | J106: 0 | K106: 4.1 | L106: 0 | M106: 0 | N106: 7.986930147 | O106: 11.6928125 | P106: 11.6928125 | Q106: 11.6928125 | R106: 11.6928125 | S106: 11.6928125 | T106: 11.6928125 | U106: 11.6928125 | V106: 11.6928125 | W106: 0 | X106: 0.8262 | Y106: 0
E107: 4 | F107: 1 | G107: 3600 | H107: 10.7578125 | I107: 0 | J107: 0 | K107: 4.1 | L107: 0 | M107: 0 | N107: 7.051930147 | O107: 10.7578125 | P107: 10.7578125 | Q107: 10.7578125 | R107: 10.7578125 | S107: 10.7578125 | T107: 10.7578125 | U107: 10.7578125 | V107: 10.7578125 | W107: 0 | X107: 0.8262 | Y107: 0
E108: Tmax Dia | F108: 2 | G108: 7200 | H108: 9.8228125 | I108: 0 | J108: 0 | K108: 4.1 | L108: 0 | M108: 0 | N108: 6.116930147 | O108: 9.8228125 | P108: 9.8228125 | Q108: 9.8228125 | R108: 9.8228125 | S108: 9.8228125 | T108: 9.8228125 | U108: 9.8228125 | V108: 9.8228125 | W108: 0 | X108: 0.8262 | Y108: 0
E109: 25.27313125 | F109: 3 | G109: 10800 | H109: 9.3388125 | I109: 0 | J109: 0 | K109: 4.1 | L109: 0 | M109: 0 | N109: 5.632930147 | O109: 9.3388125 | P109: 9.3388125 | Q109: 9.3388125 | R109: 9.3388125 | S109: 9.3388125 | T109: 9.3388125 | U109: 9.3388125 | V109: 9.3388125 | W109: 0 | X109: 0.8262 | Y109: 0
E110: Tmin Dia | F110: 4 | G110: 14400 | H110: 8.8383125 | I110: 0 | J110: 0 | K110: 4.1 | L110: 0 | M110: 0 | N110: 5.132430147 | O110: 8.8383125 | P110: 8.8383125 | Q110: 8.8383125 | R110: 8.8383125 | S110: 8.8383125 | T110: 8.8383125 | U110: 8.8383125 | V110: 8.8383125 | W110: 0 | X110: 0.8262 | Y110: 0
E111: 20.27313125 | F111: 5 | G111: 18000 | H111: 8.5193125 | I111: 0 | J111: 0 | K111: 4.1 | L111: 0 | M111: 0 | N111: 4.813430147 | O111: 8.5193125 | P111: 8.5193125 | Q111: 8.5193125 | R111: 8.5193125 | S111: 8.5193125 | T111: 8.5193125 | U111: 8.5193125 | V111: 8.5193125 | W111: 0 | X111: 0.8262 | Y111: 0
E112: Tmax Noche | F112: 6 | G112: 21600 | H112: 8.8053125 | I112: 0 | J112: 0 | K112: 3.28 | L112: 0 | M112: 0 | N112: 5.099430147 | O112: 8.8053125 | P112: 8.8053125 | Q112: 8.8053125 | R112: 8.8053125 | S112: 8.8053125 | T112: 8.8053125 | U112: 8.8053125 | V112: 8.8053125 | W112: 0 | X112: 0.8262 | Y112: 0
E113: 25.27313125 | F113: 7 | G113: 25200 | H113: 11.3133125 | I113: 171.679588 | J113: 0 | K113: 3.936 | L113: 0 | M113: 0 | N113: 8.013704657 | O113: 11.61591017 | P113: 11.60445806 | Q113: 11.55906512 | R113: 11.46400427 | S113: 11.41727853 | T113: 11.46400427 | U113: 11.55906512 | V113: 11.60445806 | W113: 0 | X113: 0.8262 | Y113: 9.866666667
E114: Tmin Noche | F114: 8 | G114: 28800 | H114: 13.9478125 | I114: 1664.596005 | J114: 287.4933164 | K114: 1.968 | L114: 0 | M114: 0 | N114: 16.79447917 | O114: 18.82822227 | P114: 18.64351818 | Q114: 17.91140376 | R114: 16.37822639 | S114: 15.6246159 | T114: 16.37822639 | U114: 17.91140376 | V114: 18.64351818 | W114: 0 | X114: 0.8262 | Y114: 159.1333333
E115: 18.27313125 | F115: 9 | G115: 32400 | H115: 16.4228125 | I115: 2336.814392 | J115: 828.8082005 | K115: 1.23 | L115: 0 | M115: 0 | N115: 25.78085172 | O115: 26.15296335 | P115: 25.78471586 | Q115: 24.32508766 | R115: 21.26836746 | S115: 19.76588219 | T115: 21.26836746 | U115: 24.32508766 | V115: 25.78471586 | W115: 0 | X115: 0.8262 | Y115: 317.2666667
E116: Tsuelo | F116: 10 | G116: 36000 | H116: 18.5623125 | I116: 3163.312408 | J116: 1228.339353 | K116: 1.23 | L116: 0 | M116: 0 | N116: 33.50799877 | O116: 32.45420365 | P116: 31.92845084 | Q116: 29.84451645 | R116: 25.48038839 | S116: 23.33526628 | T116: 25.48038839 | U116: 29.84451645 | V116: 31.92845084 | W116: 0 | X116: 0.8262 | Y116: 452.9666667
E117: 15.18875 | F117: 11 | G117: 39600 | H117: 20.3883125 | I117: 3789.710905 | J117: 1522.929406 | K117: 1.23 | L117: 0 | M117: 0 | N117: 39.49419485 | O117: 37.37876293 | P117: 36.73574198 | Q117: 34.18699008 | R117: 28.84945175 | S117: 26.22586433 | T117: 28.84945175 | U117: 34.18699008 | V117: 36.73574198 | W117: 0 | X117: 3.8262 | Y117: 554
E118: Infil RAH | F118: 12 | G118: 43200 | H118: 21.6643125 | I118: 4314.609645 | J118: 1152.622139 | K118: 1.23 | L118: 0 | M118: 0 | N118: 43.86392034 | O118: 40.95900332 | P118: 40.22877604 | Q118: 37.33436308 | R118: 31.27294922 | S118: 28.29355156 | T118: 31.27294922 | U118: 37.33436308 | V118: 40.22877604 | W118: 0 | X118: 3.8262 | Y118: 629.1333333
E119: 0 | F119: 13 | G119: 46800 | H119: 22.3298125 | I119: 4438.729347 | J119: 2041.407368 | K119: 1.23 | L119: 0 | M119: 0 | N119: 44.46765564 | O119: 41.5785003 | P119: 40.85001405 | Q119: 37.96250204 | R119: 31.91554 | S119: 28.94324592 | T119: 31.91554 | U119: 37.96250204 | V119: 40.85001405 | W119: 0 | X119: 3.8262 | Y119: 627.6333333
E120: Cat Mes | F120: 14 | G120: 50400 | H120: 22.3848125 | I120: 3981.110445 | J120: 1789.701985 | K120: 1.23 | L120: 0 | M120: 0 | N120: 41.54834191 | O120: 39.41819909 | P120: 38.77355318 | Q120: 36.21836038 | R120: 30.86733369 | S120: 28.23711627 | T120: 30.86733369 | U120: 36.21836038 | V120: 38.77355318 | W120: 0 | X120: 3.8262 | Y120: 555.4
E121: v | F121: 15 | G121: 54000 | H121: 21.7138125 | I121: 3104.15255 | J121: 1471.508389 | K121: 1.23 | L121: 0 | M121: 0 | N121: 36.4110674 | O121: 35.42066926 | P121: 34.90191927 | Q121: 32.84574204 | R121: 28.53974241 | S121: 26.42319246 | T121: 28.53974241 | U121: 32.84574204 | V121: 34.90191927 | W121: 0 | X121: 3.8262 | Y121: 446.9333333
F122: 16 | G122: 57600 | H122: 20.3223125 | I122: 2147.734845 | J122: 986.911597 | K122: 1.476 | L122: 0 | M122: 0 | N122: 29.11486152 | O122: 29.63128011 | P122: 29.27897272 | Q122: 27.88252658 | R122: 24.95812081 | S122: 23.52067273 | T122: 24.95812081 | U122: 27.88252658 | V122: 29.27897272 | W122: 0 | X122: 3.8262 | Y122: 303.5333333
F123: 17 | G123: 61200 | H123: 18.4908125 | I123: 1600.796158 | J123: 332.9890508 | K123: 2.46 | L123: 0 | M123: 0 | N123: 21.0753223 | O123: 23.17596499 | P123: 22.99865061 | Q123: 22.2958269 | R123: 20.82398947 | S123: 20.10052971 | T123: 20.82398947 | U123: 22.2958269 | V123: 22.99865061 | W123: 0 | X123: 0.8262 | Y123: 152.7666667
F124: 18 | G124: 64800 | H124: 17.4568125 | I124: 177.479574 | J124: 0 | K124: 2.46 | L124: 0 | M124: 0 | N124: 14.17093015 | O124: 17.76963307 | P124: 17.75779405 | Q124: 17.71086757 | R124: 17.61259521 | S124: 17.56429089 | T124: 17.61259521 | U124: 17.71086757 | V124: 17.75779405 | W124: 0 | X124: 0.8262 | Y124: 10.2
F125: 19 | G125: 68400 | H125: 16.4283125 | I125: 0 | J125: 0 | K125: 3.69 | L125: 1.5 | M125: 0 | N125: 12.72243015 | O125: 16.4283125 | P125: 16.4283125 | Q125: 16.4283125 | R125: 16.4283125 | S125: 16.4283125 | T125: 16.4283125 | U125: 16.4283125 | V125: 16.4283125 | W125: 0 | X125: 0.8262 | Y125: 0
F126: 20 | G126: 72000 | H126: 15.3778125 | I126: 0 | J126: 0 | K126: 4.428 | L126: 1.5 | M126: 0 | N126: 11.67193015 | O126: 15.3778125 | P126: 15.3778125 | Q126: 15.3778125 | R126: 15.3778125 | S126: 15.3778125 | T126: 15.3778125 | U126: 15.3778125 | V126: 15.3778125 | W126: 0 | X126: 0.8262 | Y126: 0
F127: 21 | G127: 75600 | H127: 14.3548125 | I127: 0 | J127: 0 | K127: 4.92 | L127: 1.5 | M127: 0 | N127: 10.64893015 | O127: 14.3548125 | P127: 14.3548125 | Q127: 14.3548125 | R127: 14.3548125 | S127: 14.3548125 | T127: 14.3548125 | U127: 14.3548125 | V127: 14.3548125 | W127: 0 | X127: 0.8262 | Y127: 0
F128: 22 | G128: 79200 | H128: 13.3208125 | I128: 0 | J128: 0 | K128: 4.1 | L128: 0 | M128: 0 | N128: 9.614930147 | O128: 13.3208125 | P128: 13.3208125 | Q128: 13.3208125 | R128: 13.3208125 | S128: 13.3208125 | T128: 13.3208125 | U128: 13.3208125 | V128: 13.3208125 | W128: 0 | X128: 0.8262 | Y128: 0
F129: 23 | G129: 82800 | H129: 12.2758125 | I129: 0 | J129: 0 | K129: 4.1 | L129: 0 | M129: 0 | N129: 8.569930147 | O129: 12.2758125 | P129: 12.2758125 | Q129: 12.2758125 | R129: 12.2758125 | S129: 12.2758125 | T129: 12.2758125 | U129: 12.2758125 | V129: 12.2758125 | W129: 0 | X129: 0.8262 | Y129: 0
F130: 24 | G130: 86400 | H130: 11.6928125 | I130: 0 | J130: 0 | K130: 4.1 | L130: 0 | M130: 0 | N130: 7.986930147 | O130: 11.6928125 | P130: 11.6928125 | Q130: 11.6928125 | R130: 11.6928125 | S130: 11.6928125 | T130: 11.6928125 | U130: 11.6928125 | V130: 11.6928125 | W130: 0 | X130: 0.8262 | Y130: 0
G131: Valor Variable | H131: =+INDIRECT(H132&$C106)+((INDIRECT(H132&$C106+1)-INDIRECT(H132&$C106))/(INDIRECT($C$4&$C106+1)-INDIRECT($C$4&$C106)))*($C$6-INDIRECT($C$4&$C106)) -> 11.6928125 | I131: =+INDIRECT(I132&$C106)+((INDIRECT(I132&$C106+1)-INDIRECT(I132&$C106))/(INDIRECT($C$4&$C106+1)-INDIRECT($C$4&$C106)))*($C$6-INDIRECT($C$4&$C106)) -> 0 | J131: 0 | K131: 4.1 | L131: 0 | M131: =+INDIRECT(M132&$C106)+((INDIRECT(M132&$C106+1)-INDIRECT(M132&$C106))/(INDIRECT($C$4&$C106+1)-INDIRECT($C$4&$C106)))*($C$6-INDIRECT($C$4&$C106)) -> 0 | N131: 7.986930147 | O131: 11.6928125 | P131: 11.6928125 | Q131: 11.6928125 | R131: 11.6928125 | S131: 11.6928125 | T131: 11.6928125 | U131: 11.6928125 | V131: 11.6928125 | W131: =+INDIRECT(W132&$C106) -> 0 | X131: 0.8262 | Y131: 0
H132: =MID(ADDRESS(ROW(),COLUMN()),2,1) -> H | I132: =MID(ADDRESS(ROW(),COLUMN()),2,1) -> I | J132: J | K132: K | L132: L | M132: M | N132: N | O132: O | P132: P | Q132: Q | R132: R | S132: S | T132: T | U132: U | V132: V | W132: W | X132: X | Y132: Y
I136: Rad Ventanas: Sol Incidente*FS*FAV*FAR [W]
E137: Mes | F137: Tiempo [hrs] | G137: Tiempo [s] | H137: T° exterior | I137: Difuso | J137: Directo | K137: Qgen Pers [W/m2] | L137: Qgen Ilum [W/m2] | M137: Qgen Equip [W/m2] | N137: TsolH | O137: TsolN | P137: TsolNE | Q137: TsolE | R137: TsolSE | S137: TsolS | T137: TsolSO | U137: TsolO | V137: TsolNO | W137: Clima [0, 1 o 2] | X137: N [RAH] | Y137: G total [W/m2]
B138: Fila inicial intervalo | C138: =TRUNC($C$6/3600,0)+10+32*(E139-1) -> 138 | E138: Mayo | F138: 0 | G138: 0 | H138: 9.597306452 | I138: 0 | J138: 0 | K138: 4.1 | L138: 0 | M138: 0 | N138: 5.891424099 | O138: 9.597306452 | P138: 9.597306452 | Q138: 9.597306452 | R138: 9.597306452 | S138: 9.597306452 | T138: 9.597306452 | U138: 9.597306452 | V138: 9.597306452 | W138: 0 | X138: 0.8262 | Y138: 0
E139: 5 | F139: 1 | G139: 3600 | H139: 8.731274194 | I139: 0 | J139: 0 | K139: 4.1 | L139: 0 | M139: 0 | N139: 5.025391841 | O139: 8.731274194 | P139: 8.731274194 | Q139: 8.731274194 | R139: 8.731274194 | S139: 8.731274194 | T139: 8.731274194 | U139: 8.731274194 | V139: 8.731274194 | W139: 0 | X139: 0.8262 | Y139: 0
E140: Tmax Dia | F140: 2 | G140: 7200 | H140: 7.870306452 | I140: 0 | J140: 0 | K140: 4.1 | L140: 0 | M140: 0 | N140: 4.164424099 | O140: 7.870306452 | P140: 7.870306452 | Q140: 7.870306452 | R140: 7.870306452 | S140: 7.870306452 | T140: 7.870306452 | U140: 7.870306452 | V140: 7.870306452 | W140: 0 | X140: 0.8262 | Y140: 0
E141: 24.72829839 | F141: 3 | G141: 10800 | H141: 7.389177419 | I141: 0 | J141: 0 | K141: 4.1 | L141: 0 | M141: 0 | N141: 3.683295066 | O141: 7.389177419 | P141: 7.389177419 | Q141: 7.389177419 | R141: 7.389177419 | S141: 7.389177419 | T141: 7.389177419 | U141: 7.389177419 | V141: 7.389177419 | W141: 0 | X141: 0.8262 | Y141: 0
E142: Tmin Dia | F142: 4 | G142: 14400 | H142: 6.948564516 | I142: 0 | J142: 0 | K142: 4.1 | L142: 0 | M142: 0 | N142: 3.242682163 | O142: 6.948564516 | P142: 6.948564516 | Q142: 6.948564516 | R142: 6.948564516 | S142: 6.948564516 | T142: 6.948564516 | U142: 6.948564516 | V142: 6.948564516 | W142: 0 | X142: 0.8262 | Y142: 0
E143: 19.72829839 | F143: 5 | G143: 18000 | H143: 6.6295 | I143: 0 | J143: 0 | K143: 4.1 | L143: 0 | M143: 0 | N143: 2.923617647 | O143: 6.6295 | P143: 6.6295 | Q143: 6.6295 | R143: 6.6295 | S143: 6.6295 | T143: 6.6295 | U143: 6.6295 | V143: 6.6295 | W143: 0 | X143: 0.8262 | Y143: 0
E144: Tmax Noche | F144: 6 | G144: 21600 | H144: 6.664951613 | I144: 0 | J144: 0 | K144: 3.28 | L144: 0 | M144: 0 | N144: 2.95906926 | O144: 6.664951613 | P144: 6.664951613 | Q144: 6.664951613 | R144: 6.664951613 | S144: 6.664951613 | T144: 6.664951613 | U144: 6.664951613 | V144: 6.664951613 | W144: 0 | X144: 0.8262 | Y144: 0
E145: 24.72829839 | F145: 7 | G145: 25200 | H145: 8.508435484 | I145: 16.27738029 | J145: 0 | K145: 3.936 | L145: 1.5 | M145: 0 | N145: 4.841073055 | O145: 8.547682938 | P145: 8.541861548 | Q145: 8.532355408 | R145: 8.52068448 | S145: 8.517734041 | T145: 8.52068448 | U145: 8.532355408 | V145: 8.541861548 | W145: 0 | X145: 0.8262 | Y145: 0.935483871
E146: Tmin Noche | F146: 8 | G146: 28800 | H146: 11.09133871 | I146: 982.8169961 | J146: 192.4216377 | K146: 1.968 | L146: 0 | M146: 0 | N146: 11.1710351 | O146: 14.94841612 | P146: 14.37631401 | Q146: 13.44208984 | R146: 12.29511939 | S146: 12.00516245 | T146: 12.29511939 | U146: 13.44208984 | V146: 14.37631401 | W146: 0 | X146: 0.8262 | Y146: 91.93548387
E147: 17.72829839 | F147: 9 | G147: 32400 | H147: 13.75527419 | I147: 1969.563015 | J147: 676.7148588 | K147: 1.23 | L147: 0 | M147: 0 | N147: 19.84407875 | O147: 23.73495448 | P147: 22.25471556 | Q147: 19.83753344 | R147: 16.86989831 | S147: 16.11967289 | T147: 16.86989831 | U147: 19.83753344 | V147: 22.25471556 | W147: 0 | X147: 0.8262 | Y147: 237.8709677
E148: Tsuelo | F148: 10 | G148: 36000 | H148: 16.0798871 | I148: 2912.528494 | J148: 1103.229062 | K148: 1.23 | L148: 0 | M148: 0 | N148: 27.63586433 | O148: 31.62999917 | P148: 29.32352438 | Q148: 25.55712588 | R148: 20.93302394 | S148: 19.76403966 | T148: 20.93302394 | U148: 25.55712588 | V148: 29.32352438 | W148: 0 | X148: 0.8262 | Y148: 370.6451613
E149: 13.05215054 | F149: 11 | G149: 39600 | H149: 17.92843548 | I149: 3509.178675 | J149: 1423.289803 | K149: 1.23 | L149: 0 | M149: 0 | N149: 33.32445066 | O149: 37.39111275 | P149: 34.50430561 | Q149: 29.79024322 | R149: 24.00267055 | S149: 22.53955803 | T149: 24.00267055 | U149: 29.79024322 | V149: 34.50430561 | W149: 0 | X149: 0.8262 | Y149: 463.9032258
E150: Infil RAH | F150: 12 | G150: 43200 | H150: 19.32117742 | I150: 3866.719752 | J150: 1181.489666 | K150: 1.23 | L150: 0 | M150: 0 | N150: 36.52630076 | O150: 40.62713168 | P150: 37.46691995 | Q150: 32.30639675 | R150: 25.97069294 | S150: 24.36901152 | T150: 25.97069294 | U150: 32.30639675 | V150: 37.46691995 | W150: 0 | X150: 0.8262 | Y150: 507.8387097
E151: 0 | F151: 13 | G151: 46800 | H151: 20.19227419 | I151: 4069.906361 | J151: 1927.337775 | K151: 1.23 | L151: 0 | M151: 0 | N151: 38.03762524 | O151: 42.15054821 | P151: 38.89358097 | Q151: 33.57505915 | R151: 27.04537648 | S151: 25.39465673 | T151: 27.04537648 | U151: 33.57505915 | V151: 38.89358097 | W151: 0 | X151: 3.8262 | Y151: 523.3870968
E152: Cat Mes | F152: 14 | G152: 50400 | H152: 20.39991935 | I152: 3515.352853 | J152: 1901.565485 | K152: 1.23 | L152: 0 | M152: 0 | N152: 36.77354364 | O152: 40.85866994 | P152: 37.82411994 | Q152: 32.86879826 | R152: 26.78502551 | S152: 25.24703288 | T152: 26.78502551 | U152: 32.86879826 | V152: 37.82411994 | W152: 0 | X152: 3.8262 | Y152: 487.6451613
E153: v | F153: 15 | G153: 54000 | H153: 19.76179032 | I153: 2874.360843 | J153: 1475.893157 | K153: 1.23 | L153: 0 | M153: 0 | N153: 31.98588899 | O153: 35.99264273 | P153: 33.58519693 | Q153: 29.65391606 | R153: 24.8273839 | S153: 23.60722476 | T153: 24.8273839 | U153: 29.65391606 | V153: 33.58519693 | W153: 0 | X153: 3.8262 | Y153: 386.8709677
F154: 16 | G154: 57600 | H154: 18.26269355 | I154: 2007.730665 | J154: 926.5138356 | K154: 1.476 | L154: 0 | M154: 0 | N154: 25.03821537 | O154: 28.94206121 | P154: 27.35804096 | Q154: 24.7713873 | R154: 21.5956877 | S154: 20.79286308 | T154: 21.5956877 | U154: 24.7713873 | V154: 27.35804096 | W154: 0 | X154: 0.8262 | Y154: 254.5483871
F155: 17 | G155: 61200 | H155: 16.44959677 | I155: 1018.739491 | J155: 288.220113 | K155: 2.46 | L155: 0 | M155: 0 | N155: 16.93707306 | O155: 20.72215585 | P155: 20.08842731 | Q155: 19.05356917 | R155: 17.78304786 | S155: 17.46185697 | T155: 17.78304786 | U155: 19.05356917 | V155: 20.08842731 | W155: 0 | X155: 0.8262 | Y155: 101.8387097
F156: 18 | G156: 64800 | H156: 15.45695161 | I156: 30.30960468 | J156: 0 | K156: 2.46 | L156: 0 | M156: 0 | N156: 11.82279602 | O156: 15.53003308 | P156: 15.51919325 | Q156: 15.50149216 | R156: 15.47976009 | S156: 15.47426617 | T156: 15.47976009 | U156: 15.50149216 | V156: 15.51919325 | W156: 0 | X156: 0.8262 | Y156: 1.741935484
F157: 19 | G157: 68400 | H157: 14.43391935 | I157: 0 | J157: 0 | K157: 3.69 | L157: 1.5 | M157: 0 | N157: 10.728037 | O157: 14.43391935 | P157: 14.43391935 | Q157: 14.43391935 | R157: 14.43391935 | S157: 14.43391935 | T157: 14.43391935 | U157: 14.43391935 | V157: 14.43391935 | W157: 0 | X157: 0.8262 | Y157: 0
F158: 20 | G158: 72000 | H158: 13.44127419 | I158: 0 | J158: 0 | K158: 4.428 | L158: 1.5 | M158: 0 | N158: 9.735391841 | O158: 13.44127419 | P158: 13.44127419 | Q158: 13.44127419 | R158: 13.44127419 | S158: 13.44127419 | T158: 13.44127419 | U158: 13.44127419 | V158: 13.44127419 | W158: 0 | X158: 0.8262 | Y158: 0
F159: 21 | G159: 75600 | H159: 12.44862903 | I159: 0 | J159: 0 | K159: 4.92 | L159: 1.5 | M159: 0 | N159: 8.742746679 | O159: 12.44862903 | P159: 12.44862903 | Q159: 12.44862903 | R159: 12.44862903 | S159: 12.44862903 | T159: 12.44862903 | U159: 12.44862903 | V159: 12.44862903 | W159: 0 | X159: 0.8262 | Y159: 0
F160: 22 | G160: 79200 | H160: 11.44585484 | I160: 0 | J160: 0 | K160: 4.1 | L160: 0 | M160: 0 | N160: 7.739972486 | O160: 11.44585484 | P160: 11.44585484 | Q160: 11.44585484 | R160: 11.44585484 | S160: 11.44585484 | T160: 11.44585484 | U160: 11.44585484 | V160: 11.44585484 | W160: 0 | X160: 0.8262 | Y160: 0
F161: 23 | G161: 82800 | H161: 10.44308065 | I161: 0 | J161: 0 | K161: 4.1 | L161: 0 | M161: 0 | N161: 6.737198292 | O161: 10.44308065 | P161: 10.44308065 | Q161: 10.44308065 | R161: 10.44308065 | S161: 10.44308065 | T161: 10.44308065 | U161: 10.44308065 | V161: 10.44308065 | W161: 0 | X161: 0.8262 | Y161: 0
F162: 24 | G162: 86400 | H162: 9.597306452 | I162: 0 | J162: 0 | K162: 4.1 | L162: 0 | M162: 0 | N162: 5.891424099 | O162: 9.597306452 | P162: 9.597306452 | Q162: 9.597306452 | R162: 9.597306452 | S162: 9.597306452 | T162: 9.597306452 | U162: 9.597306452 | V162: 9.597306452 | W162: 0 | X162: 0.8262 | Y162: 0
G163: Valor Variable | H163: =+INDIRECT(H164&$C138)+((INDIRECT(H164&$C138+1)-INDIRECT(H164&$C138))/(INDIRECT($C$4&$C138+1)-INDIRECT($C$4&$C138)))*($C$6-INDIRECT($C$4&$C138)) -> 9.597306452 | I163: =+INDIRECT(I164&$C138)+((INDIRECT(I164&$C138+1)-INDIRECT(I164&$C138))/(INDIRECT($C$4&$C138+1)-INDIRECT($C$4&$C138)))*($C$6-INDIRECT($C$4&$C138)) -> 0 | J163: 0 | K163: 4.1 | L163: 0 | M163: =+INDIRECT(M164&$C138)+((INDIRECT(M164&$C138+1)-INDIRECT(M164&$C138))/(INDIRECT($C$4&$C138+1)-INDIRECT($C$4&$C138)))*($C$6-INDIRECT($C$4&$C138)) -> 0 | N163: 5.891424099 | O163: 9.597306452 | P163: 9.597306452 | Q163: 9.597306452 | R163: 9.597306452 | S163: 9.597306452 | T163: 9.597306452 | U163: 9.597306452 | V163: 9.597306452 | W163: =+INDIRECT(W164&$C138) -> 0 | X163: 0.8262 | Y163: 0
H164: =MID(ADDRESS(ROW(),COLUMN()),2,1) -> H | I164: =MID(ADDRESS(ROW(),COLUMN()),2,1) -> I | J164: J | K164: K | L164: L | M164: M | N164: N | O164: O | P164: P | Q164: Q | R164: R | S164: S | T164: T | U164: U | V164: V | W164: W | X164: X | Y164: Y
I168: Rad Ventanas: Sol Incidente*FS*FAV*FAR [W]
E169: Mes | F169: Tiempo [hrs] | G169: Tiempo [s] | H169: T° exterior | I169: Difuso | J169: Directo | K169: Qgen Pers [W/m2] | L169: Qgen Ilum [W/m2] | M169: Qgen Equip [W/m2] | N169: TsolH | O169: TsolN | P169: TsolNE | Q169: TsolE | R169: TsolSE | S169: TsolS | T169: TsolSO | U169: TsolO | V169: TsolNO | W169: Clima [0, 1 o 2] | X169: N [RAH] | Y169: G total [W/m2]
B170: Fila inicial intervalo | C170: =TRUNC($C$6/3600,0)+10+32*(E171-1) -> 170 | E170: Junio | F170: 0 | G170: 0 | H170: 8.141183333 | I170: 0 | J170: 0 | K170: 4.1 | L170: 0 | M170: 0 | N170: 4.43530098 | O170: 8.141183333 | P170: 8.141183333 | Q170: 8.141183333 | R170: 8.141183333 | S170: 8.141183333 | T170: 8.141183333 | U170: 8.141183333 | V170: 8.141183333 | W170: 0 | X170: 0.8262 | Y170: 0
E171: 6 | F171: 1 | G171: 3600 | H171: 7.22625 | I171: 0 | J171: 0 | K171: 4.1 | L171: 0 | M171: 0 | N171: 3.520367647 | O171: 7.22625 | P171: 7.22625 | Q171: 7.22625 | R171: 7.22625 | S171: 7.22625 | T171: 7.22625 | U171: 7.22625 | V171: 7.22625 | W171: 0 | X171: 0.8262 | Y171: 0
E172: Tmax Dia | F172: 2 | G172: 7200 | H172: 6.316183333 | I172: 0 | J172: 0 | K172: 4.1 | L172: 0 | M172: 0 | N172: 2.61030098 | O172: 6.316183333 | P172: 6.316183333 | Q172: 6.316183333 | R172: 6.316183333 | S172: 6.316183333 | T172: 6.316183333 | U172: 6.316183333 | V172: 6.316183333 | W172: 0 | X172: 0.8262 | Y172: 0
E173: 24.2897875 | F173: 3 | G173: 10800 | H173: 5.873316667 | I173: 0 | J173: 0 | K173: 4.1 | L173: 0 | M173: 0 | N173: 2.167434314 | O173: 5.873316667 | P173: 5.873316667 | Q173: 5.873316667 | R173: 5.873316667 | S173: 5.873316667 | T173: 5.873316667 | U173: 5.873316667 | V173: 5.873316667 | W173: 0 | X173: 0.8262 | Y173: 0
E174: Tmin Dia | F174: 4 | G174: 14400 | H174: 5.396383333 | I174: 0 | J174: 0 | K174: 4.1 | L174: 0 | M174: 0 | N174: 1.69050098 | O174: 5.396383333 | P174: 5.396383333 | Q174: 5.396383333 | R174: 5.396383333 | S174: 5.396383333 | T174: 5.396383333 | U174: 5.396383333 | V174: 5.396383333 | W174: 0 | X174: 0.8262 | Y174: 0
E175: 19.2897875 | F175: 5 | G175: 18000 | H175: 5.099516667 | I175: 0 | J175: 0 | K175: 4.1 | L175: 0 | M175: 0 | N175: 1.393634314 | O175: 5.099516667 | P175: 5.099516667 | Q175: 5.099516667 | R175: 5.099516667 | S175: 5.099516667 | T175: 5.099516667 | U175: 5.099516667 | V175: 5.099516667 | W175: 0 | X175: 0.8262 | Y175: 0
E176: Tmax Noche | F176: 6 | G176: 21600 | H176: 5.084916667 | I176: 0 | J176: 0 | K176: 3.28 | L176: 0 | M176: 0 | N176: 1.379034314 | O176: 5.084916667 | P176: 5.084916667 | Q176: 5.084916667 | R176: 5.084916667 | S176: 5.084916667 | T176: 5.084916667 | U176: 5.084916667 | V176: 5.084916667 | W176: 0 | X176: 0.8262 | Y176: 0
E177: 24.2897875 | F177: 7 | G177: 25200 | H177: 6.58385 | I177: 0.579998608 | J177: 0 | K177: 3.936 | L177: 1.5 | M177: 0 | N177: 2.879340196 | O177: 6.585498705 | P177: 6.58518857 | Q177: 6.584718752 | R177: 6.584233889 | S177: 6.584148582 | T177: 6.584233889 | U177: 6.584718752 | V177: 6.58518857 | W177: 0 | X177: 0.8262 | Y177: 0.03333333333
E178: Tmin Noche | F178: 8 | G178: 28800 | H178: 9.017183333 | I178: 677.4383741 | J178: 169.9508529 | K178: 1.968 | L178: 0 | M178: 0 | N178: 8.078359804 | O178: 12.34097286 | P178: 11.71574051 | Q178: 10.76858694 | R178: 9.791102768 | S178: 9.619124055 | T178: 9.791102768 | U178: 10.76858694 | V178: 11.71574051 | W178: 0 | X178: 0.8262 | Y178: 67.2
E179: 17.2897875 | F179: 9 | G179: 32400 | H179: 11.52351667 | I179: 1481.316445 | J179: 675.9955505 | K179: 1.23 | L179: 0 | M179: 0 | N179: 15.95273235 | O179: 21.29539191 | P179: 19.45722123 | Q179: 16.67260851 | R179: 13.79882445 | S179: 13.29321044 | T179: 13.79882445 | U179: 16.67260851 | V179: 19.45722123 | W179: 0 | X179: 0.8262 | Y179: 197.5666667
E180: Tsuelo | F180: 10 | G180: 36000 | H180: 13.87411667 | I180: 2116.994919 | J180: 1155.786048 | K180: 1.23 | L180: 0 | M180: 0 | N180: 23.09352843 | O180: 29.39997278 | P180: 26.47943063 | Q180: 22.05515225 | R180: 17.48919569 | S180: 16.6858606 | T180: 17.48919569 | U180: 22.05515225 | V180: 26.47943063 | W180: 0 | X180: 0.8262 | Y180: 313.9
E181: 11.3325 | F181: 11 | G181: 39600 | H181: 16.02518333 | I181: 2630.293687 | J181: 1541.181673 | K181: 1.23 | L181: 0 | M181: 0 | N181: 29.09871275 | O181: 36.18060343 | P181: 32.38920194 | Q181: 26.64567394 | R181: 20.71822157 | S181: 19.6753447 | T181: 20.71822157 | U181: 26.64567394 | V181: 32.38920194 | W181: 0 | X181: 0.8262 | Y181: 407.5
E182: Infil RAH | F182: 12 | G182: 43200 | H182: 17.60198333 | I182: 2988.732827 | J182: 1535.238596 | K182: 1.23 | L182: 0 | M182: 0 | N182: 33.93119902 | O182: 41.66813197 | P182: 37.14109005 | Q182: 30.28315318 | R182: 23.20560535 | S182: 21.96038051 | T182: 23.20560535 | U182: 30.28315318 | V182: 37.14109005 | W182: 0 | X182: 0.8262 | Y182: 486.5666667
E183: 0 | F183: 13 | G183: 46800 | H183: 18.39525 | I183: 3241.032222 | J183: 2299.769891 | K183: 1.23 | L183: 0 | M183: 0 | N183: 35.07583824 | O183: 42.88346715 | P183: 38.27703064 | Q183: 31.2988203 | R183: 24.0971475 | S183: 22.83008409 | T183: 24.0971475 | U183: 31.2988203 | V183: 38.27703064 | W183: 0 | X183: 0.8262 | Y183: 495.1
E184: Cat Mes | F184: 14 | G184: 50400 | H184: 18.58991667 | I184: 3051.372677 | J184: 1870.84357 | K184: 1.23 | L184: 0 | M184: 0 | N184: 32.44991667 | O184: 39.6900448 | P184: 35.7209359 | Q184: 29.70820204 | R184: 23.50292308 | S184: 22.41116535 | T184: 23.50292308 | U184: 29.70820204 | V184: 35.7209359 | W184: 0 | X184: 0.8262 | Y184: 426.6
E185: i | F185: 15 | G185: 54000 | H185: 17.95725 | I185: 2196.454729 | J185: 1651.415984 | K185: 1.23 | L185: 0 | M185: 0 | N185: 28.58077941 | O185: 35.16973146 | P185: 31.9319211 | Q185: 27.02701866 | R185: 21.96504707 | S185: 21.07444302 | T185: 21.96504707 | U185: 27.02701866 | V185: 31.9319211 | W185: 0 | X185: 0.8262 | Y185: 348
F186: 16 | G186: 57600 | H186: 16.42425 | I186: 1538.156308 | J186: 1022.919776 | K186: 1.476 | L186: 0 | M186: 0 | N186: 22.01464216 | O186: 27.59092978 | P186: 25.49038481 | Q186: 22.30830586 | R186: 19.02432754 | S186: 18.4465439 | T186: 19.02432754 | U186: 22.30830586 | V186: 25.49038481 | W186: 0 | X186: 0.8262 | Y186: 225.7666667
F187: 17 | G187: 61200 | H187: 14.66738333 | I187: 720.3582711 | J187: 277.5113587 | K187: 2.46 | L187: 0 | M187: 0 | N187: 14.20071667 | O187: 18.55832742 | P187: 17.8264086 | Q187: 16.71763755 | R187: 15.57336045 | S187: 15.37203616 | T187: 15.57336045 | U187: 16.71763755 | V187: 17.8264086 | W187: 0 | X187: 0.8262 | Y187: 78.66666667
F188: 18 | G188: 64800 | H188: 13.71838333 | I188: 6.959983296 | J188: 0 | K188: 2.46 | L188: 1.5 | M188: 0 | N188: 10.02897157 | O188: 13.73816779 | P188: 13.73444617 | Q188: 13.72880835 | R188: 13.72299 | S188: 13.72196631 | T188: 13.72299 | U188: 13.72880835 | V188: 13.73444617 | W188: 0 | X188: 0.8262 | Y188: 0.4
F189: 19 | G189: 68400 | H189: 12.77425 | I189: 0 | J189: 0 | K189: 3.69 | L189: 1.5 | M189: 0 | N189: 9.068367647 | O189: 12.77425 | P189: 12.77425 | Q189: 12.77425 | R189: 12.77425 | S189: 12.77425 | T189: 12.77425 | U189: 12.77425 | V189: 12.77425 | W189: 0 | X189: 0.8262 | Y189: 0
F190: 20 | G190: 72000 | H190: 11.83498333 | I190: 0 | J190: 0 | K190: 4.428 | L190: 1.5 | M190: 0 | N190: 8.12910098 | O190: 11.83498333 | P190: 11.83498333 | Q190: 11.83498333 | R190: 11.83498333 | S190: 11.83498333 | T190: 11.83498333 | U190: 11.83498333 | V190: 11.83498333 | W190: 0 | X190: 0.8262 | Y190: 0
F191: 21 | G191: 75600 | H191: 10.90545 | I191: 0 | J191: 0 | K191: 4.92 | L191: 1.5 | M191: 0 | N191: 7.199567647 | O191: 10.90545 | P191: 10.90545 | Q191: 10.90545 | R191: 10.90545 | S191: 10.90545 | T191: 10.90545 | U191: 10.90545 | V191: 10.90545 | W191: 0 | X191: 0.8262 | Y191: 0
F192: 22 | G192: 79200 | H192: 9.946716667 | I192: 0 | J192: 0 | K192: 4.1 | L192: 0 | M192: 0 | N192: 6.240834314 | O192: 9.946716667 | P192: 9.946716667 | Q192: 9.946716667 | R192: 9.946716667 | S192: 9.946716667 | T192: 9.946716667 | U192: 9.946716667 | V192: 9.946716667 | W192: 0 | X192: 0.8262 | Y192: 0
F193: 23 | G193: 82800 | H193: 9.002583333 | I193: 0 | J193: 0 | K193: 4.1 | L193: 0 | M193: 0 | N193: 5.29670098 | O193: 9.002583333 | P193: 9.002583333 | Q193: 9.002583333 | R193: 9.002583333 | S193: 9.002583333 | T193: 9.002583333 | U193: 9.002583333 | V193: 9.002583333 | W193: 0 | X193: 0.8262 | Y193: 0
F194: 24 | G194: 86400 | H194: 8.141183333 | I194: 0 | J194: 0 | K194: 4.1 | L194: 0 | M194: 0 | N194: 4.43530098 | O194: 8.141183333 | P194: 8.141183333 | Q194: 8.141183333 | R194: 8.141183333 | S194: 8.141183333 | T194: 8.141183333 | U194: 8.141183333 | V194: 8.141183333 | W194: 0 | X194: 0.8262 | Y194: 0
G195: Valor Variable | H195: =+INDIRECT(H196&$C170)+((INDIRECT(H196&$C170+1)-INDIRECT(H196&$C170))/(INDIRECT($C$4&$C170+1)-INDIRECT($C$4&$C170)))*($C$6-INDIRECT($C$4&$C170)) -> 8.141183333 | I195: =+INDIRECT(I196&$C170)+((INDIRECT(I196&$C170+1)-INDIRECT(I196&$C170))/(INDIRECT($C$4&$C170+1)-INDIRECT($C$4&$C170)))*($C$6-INDIRECT($C$4&$C170)) -> 0 | J195: 0 | K195: 4.1 | L195: 0 | M195: =+INDIRECT(M196&$C170)+((INDIRECT(M196&$C170+1)-INDIRECT(M196&$C170))/(INDIRECT($C$4&$C170+1)-INDIRECT($C$4&$C170)))*($C$6-INDIRECT($C$4&$C170)) -> 0 | N195: 4.43530098 | O195: 8.141183333 | P195: 8.141183333 | Q195: 8.141183333 | R195: 8.141183333 | S195: 8.141183333 | T195: 8.141183333 | U195: 8.141183333 | V195: 8.141183333 | W195: =+INDIRECT(W196&$C170) -> 0 | X195: 0.8262 | Y195: 0
H196: =MID(ADDRESS(ROW(),COLUMN()),2,1) -> H | I196: =MID(ADDRESS(ROW(),COLUMN()),2,1) -> I | J196: J | K196: K | L196: L | M196: M | N196: N | O196: O | P196: P | Q196: Q | R196: R | S196: S | T196: T | U196: U | V196: V | W196: W | X196: X | Y196: Y
I200: Rad Ventanas: Sol Incidente*FS*FAV*FAR [W]
E201: Mes | F201: Tiempo [hrs] | G201: Tiempo [s] | H201: T° exterior | I201: Difuso | J201: Directo | K201: Qgen Pers [W/m2] | L201: Qgen Ilum [W/m2] | M201: Qgen Equip [W/m2] | N201: TsolH | O201: TsolN | P201: TsolNE | Q201: TsolE | R201: TsolSE | S201: TsolS | T201: TsolSO | U201: TsolO | V201: TsolNO | W201: Clima [0, 1 o 2] | X201: N [RAH] | Y201: G total [W/m2]
B202: Fila inicial intervalo | C202: =TRUNC($C$6/3600,0)+10+32*(E203-1) -> 202 | E202: Julio | F202: 0 | G202: 0 | H202: 7.397630376 | I202: 0 | J202: 0 | K202: 4.1 | L202: 0 | M202: 0 | N202: 3.691748023 | O202: 7.397630376 | P202: 7.397630376 | Q202: 7.397630376 | R202: 7.397630376 | S202: 7.397630376 | T202: 7.397630376 | U202: 7.397630376 | V202: 7.397630376 | W202: 0 | X202: 0.8262 | Y202: 0
E203: 7 | F203: 1 | G203: 3600 | H203: 6.48724328 | I203: 0 | J203: 0 | K203: 4.1 | L203: 0 | M203: 0 | N203: 2.781360927 | O203: 6.48724328 | P203: 6.48724328 | Q203: 6.48724328 | R203: 6.48724328 | S203: 6.48724328 | T203: 6.48724328 | U203: 6.48724328 | V203: 6.48724328 | W203: 0 | X203: 0.8262 | Y203: 0
E204: Tmax Dia | F204: 2 | G204: 7200 | H204: 5.585694892 | I204: 0 | J204: 0 | K204: 4.1 | L204: 0 | M204: 0 | N204: 1.87981254 | O204: 5.585694892 | P204: 5.585694892 | Q204: 5.585694892 | R204: 5.585694892 | S204: 5.585694892 | T204: 5.585694892 | U204: 5.585694892 | V204: 5.585694892 | W204: 0 | X204: 0.8262 | Y204: 0
E205: 24.15972379 | F205: 3 | G205: 10800 | H205: 5.121662634 | I205: 0 | J205: 0 | K205: 4.1 | L205: 0 | M205: 0 | N205: 1.415780281 | O205: 5.121662634 | P205: 5.121662634 | Q205: 5.121662634 | R205: 5.121662634 | S205: 5.121662634 | T205: 5.121662634 | U205: 5.121662634 | V205: 5.121662634 | W205: 0 | X205: 0.8262 | Y205: 0
E206: Tmin Dia | F206: 4 | G206: 14400 | H206: 4.68856586 | I206: 0 | J206: 0 | K206: 4.1 | L206: 0 | M206: 0 | N206: 0.9826835073 | O206: 4.68856586 | P206: 4.68856586 | Q206: 4.68856586 | R206: 4.68856586 | S206: 4.68856586 | T206: 4.68856586 | U206: 4.68856586 | V206: 4.68856586 | W206: 0 | X206: 0.8262 | Y206: 0
E207: 19.15972379 | F207: 5 | G207: 18000 | H207: 4.357114247 | I207: 0 | J207: 0 | K207: 4.1 | L207: 0 | M207: 0 | N207: 0.6512318944 | O207: 4.357114247 | P207: 4.357114247 | Q207: 4.357114247 | R207: 4.357114247 | S207: 4.357114247 | T207: 4.357114247 | U207: 4.357114247 | V207: 4.357114247 | W207: 0 | X207: 0.8262 | Y207: 0
E208: Tmax Noche | F208: 6 | G208: 21600 | H208: 4.352694892 | I208: 0 | J208: 0 | K208: 3.28 | L208: 0 | M208: 0 | N208: 0.6468125395 | O208: 4.352694892 | P208: 4.352694892 | Q208: 4.352694892 | R208: 4.352694892 | S208: 4.352694892 | T208: 4.352694892 | U208: 4.352694892 | V208: 4.352694892 | W208: 0 | X208: 0.8262 | Y208: 0
E209: 24.15972379 | F209: 7 | G209: 25200 | H209: 6.014372312 | I209: 6.735467706 | J209: 0 | K209: 3.936 | L209: 1.5 | M209: 0 | N209: 2.324429238 | O209: 6.031972429 | P209: 6.028988099 | Q209: 6.024350442 | R209: 6.01921386 | S209: 6.018149568 | T209: 6.01921386 | U209: 6.024350442 | V209: 6.028988099 | W209: 0 | X209: 0.8262 | Y209: 0.3870967742
E210: Tmin Noche | F210: 8 | G210: 28800 | H210: 8.52456586 | I210: 710.591843 | J210: 228.0974638 | K210: 1.968 | L210: 0 | M210: 0 | N210: 8.143351439 | O210: 12.19565701 | P210: 11.57317553 | Q210: 10.60583755 | R210: 9.534432137 | S210: 9.31243845 | T210: 9.534432137 | U210: 10.60583755 | V210: 11.57317553 | W210: 0 | X210: 0.8262 | Y210: 80.74193548
E211: 17.15972379 | F211: 9 | G211: 32400 | H211: 11.24688844 | I211: 1425.112709 | J211: 793.4546375 | K211: 1.23 | L211: 0 | M211: 0 | N211: 16.62905163 | O211: 21.28188871 | P211: 19.58032327 | Q211: 16.93608577 | R211: 14.00737788 | S211: 13.40055375 | T211: 14.00737788 | U211: 16.93608577 | V211: 19.58032327 | W211: 0 | X211: 0.8262 | Y211: 220.7096774
E212: Tsuelo | F212: 10 | G212: 36000 | H212: 13.70846909 | I212: 2026.253202 | J212: 1394.031387 | K212: 1.23 | L212: 0 | M212: 0 | N212: 24.83939888 | O212: 30.09124502 | P212: 27.31333127 | Q212: 22.99644543 | R212: 18.2151436 | S212: 17.22446462 | T212: 18.2151436 | U212: 22.99644543 | V212: 27.31333127 | W212: 0 | X212: 0.8262 | Y212: 360.3225806
E213: 10.82244624 | F213: 11 | G213: 39600 | H213: 15.72369489 | I213: 2653.774276 | J213: 1754.524954 | K213: 1.23 | L213: 0 | M213: 0 | N213: 30.93640836 | O213: 36.61356756 | P213: 33.07141666 | Q213: 27.56690412 | R213: 21.47020923 | S213: 20.20698266 | T213: 21.47020923 | U213: 27.56690412 | V213: 33.07141666 | W213: 0 | X213: 0.8262 | Y213: 459.4516129
E214: Infil RAH | F214: 12 | G214: 43200 | H214: 17.13346909 | I214: 3112.347369 | J214: 1492.708783 | K214: 1.23 | L214: 0 | M214: 0 | N214: 34.50329831 | O214: 40.4052243 | P214: 36.45919409 | Q214: 30.32705196 | R214: 23.53520628 | S214: 22.12794547 | T214: 23.53520628 | U214: 30.32705196 | V214: 36.45919409 | W214: 0 | X214: 0.8262 | Y214: 511.8387097
E215: 0 | F215: 13 | G215: 46800 | H215: 18.07479167 | I215: 3117.39897 | J215: 2323.569412 | K215: 1.23 | L215: 0 | M215: 0 | N215: 35.36625277 | O215: 41.26001297 | P215: 37.32865572 | Q215: 31.2193154 | R215: 24.45272459 | S215: 23.05069654 | T215: 24.45272459 | U215: 31.2193154 | V215: 37.32865572 | W215: 0 | X215: 0.8262 | Y215: 509.9354839
... 158 more rows

Sheet SA (hidden)
D2: Serie de Amplificacion
D3: Horiz | E3: N | F3: NE | G3: E | H3: SE | I3: S | J3: SO | K3: O | L3: NO | M3: Piso Vent | N3: Piso Terreno
C4: 1 | D4: =IF(Calculo!$C$6="Si",IF($B$26="v",H64,I64),IF($B$26="v",H36,I36)) -> 0 | E4: =IF(Calculo!$C$6="Si",IF($B$26="v",F64,G64),IF($B$26="v",F36,G36)) -> 0 | F4: =IF(Calculo!$C$6="Si",IF($B$26="v",F64,G64),IF($B$26="v",F36,G36)) -> 0 | G4: =IF(Calculo!$C$6="Si",IF($B$26="v",F64,G64),IF($B$26="v",F36,G36)) -> 0 | H4: =IF(Calculo!$C$6="Si",IF($B$26="v",F64,G64),IF($B$26="v",F36,G36)) -> 0 | I4: =IF(Calculo!$C$6="Si",IF($B$26="v",F64,G64),IF($B$26="v",F36,G36)) -> 0 | J4: =IF(Calculo!$C$6="Si",IF($B$26="v",F64,G64),IF($B$26="v",F36,G36)) -> 0 | K4: =IF(Calculo!$C$6="Si",IF($B$26="v",F64,G64),IF($B$26="v",F36,G36)) -> 0 | L4: =IF(Calculo!$C$6="Si",IF($B$26="v",F64,G64),IF($B$26="v",F36,G36)) -> 0 | M4: =IF(Calculo!$C$6="Si",IF($B$26="v",J64,K64),IF($B$26="v",J36,K36)) -> 0 | N4: =IF(Calculo!$C$6="Si",IF($B$26="v",L64,M64),IF($B$26="v",L36,M36)) -> 0
C5: 2 | D5: =IF(Calculo!$C$6="Si",IF($B$26="v",H65,I65),IF($B$26="v",H37,I37)) -> 0 | E5: =IF(Calculo!$C$6="Si",IF($B$26="v",F65,G65),IF($B$26="v",F37,G37)) -> 0 | F5: =IF(Calculo!$C$6="Si",IF($B$26="v",F65,G65),IF($B$26="v",F37,G37)) -> 0 | G5: =IF(Calculo!$C$6="Si",IF($B$26="v",F65,G65),IF($B$26="v",F37,G37)) -> 0 | H5: =IF(Calculo!$C$6="Si",IF($B$26="v",F65,G65),IF($B$26="v",F37,G37)) -> 0 | I5: =IF(Calculo!$C$6="Si",IF($B$26="v",F65,G65),IF($B$26="v",F37,G37)) -> 0 | J5: =IF(Calculo!$C$6="Si",IF($B$26="v",F65,G65),IF($B$26="v",F37,G37)) -> 0 | K5: =IF(Calculo!$C$6="Si",IF($B$26="v",F65,G65),IF($B$26="v",F37,G37)) -> 0 | L5: =IF(Calculo!$C$6="Si",IF($B$26="v",F65,G65),IF($B$26="v",F37,G37)) -> 0 | M5: =IF(Calculo!$C$6="Si",IF($B$26="v",J65,K65),IF($B$26="v",J37,K37)) -> 0 | N5: =IF(Calculo!$C$6="Si",IF($B$26="v",L65,M65),IF($B$26="v",L37,M37)) -> 0
C6: 3 | D6: =IF(Calculo!$C$6="Si",IF($B$26="v",H66,I66),IF($B$26="v",H38,I38)) -> 58.002 | E6: =IF(Calculo!$C$6="Si",IF($B$26="v",F66,G66),IF($B$26="v",F38,G38)) -> 0 | F6: =IF(Calculo!$C$6="Si",IF($B$26="v",F66,G66),IF($B$26="v",F38,G38)) -> 0 | G6: =IF(Calculo!$C$6="Si",IF($B$26="v",F66,G66),IF($B$26="v",F38,G38)) -> 0 | H6: =IF(Calculo!$C$6="Si",IF($B$26="v",F66,G66),IF($B$26="v",F38,G38)) -> 0 | I6: =IF(Calculo!$C$6="Si",IF($B$26="v",F66,G66),IF($B$26="v",F38,G38)) -> 0 | J6: =IF(Calculo!$C$6="Si",IF($B$26="v",F66,G66),IF($B$26="v",F38,G38)) -> 0 | K6: =IF(Calculo!$C$6="Si",IF($B$26="v",F66,G66),IF($B$26="v",F38,G38)) -> 0 | L6: =IF(Calculo!$C$6="Si",IF($B$26="v",F66,G66),IF($B$26="v",F38,G38)) -> 0 | M6: =IF(Calculo!$C$6="Si",IF($B$26="v",J66,K66),IF($B$26="v",J38,K38)) -> 0 | N6: =IF(Calculo!$C$6="Si",IF($B$26="v",L66,M66),IF($B$26="v",L38,M38)) -> 0
C7: 4 | D7: =IF(Calculo!$C$6="Si",IF($B$26="v",H67,I67),IF($B$26="v",H39,I39)) -> 0 | E7: =IF(Calculo!$C$6="Si",IF($B$26="v",F67,G67),IF($B$26="v",F39,G39)) -> 0 | F7: =IF(Calculo!$C$6="Si",IF($B$26="v",F67,G67),IF($B$26="v",F39,G39)) -> 0 | G7: =IF(Calculo!$C$6="Si",IF($B$26="v",F67,G67),IF($B$26="v",F39,G39)) -> 0 | H7: =IF(Calculo!$C$6="Si",IF($B$26="v",F67,G67),IF($B$26="v",F39,G39)) -> 0 | I7: =IF(Calculo!$C$6="Si",IF($B$26="v",F67,G67),IF($B$26="v",F39,G39)) -> 0 | J7: =IF(Calculo!$C$6="Si",IF($B$26="v",F67,G67),IF($B$26="v",F39,G39)) -> 0 | K7: =IF(Calculo!$C$6="Si",IF($B$26="v",F67,G67),IF($B$26="v",F39,G39)) -> 0 | L7: =IF(Calculo!$C$6="Si",IF($B$26="v",F67,G67),IF($B$26="v",F39,G39)) -> 0 | M7: =IF(Calculo!$C$6="Si",IF($B$26="v",J67,K67),IF($B$26="v",J39,K39)) -> 0 | N7: =IF(Calculo!$C$6="Si",IF($B$26="v",L67,M67),IF($B$26="v",L39,M39)) -> 0
C8: 5 | D8: =IF(Calculo!$C$6="Si",IF($B$26="v",H68,I68),IF($B$26="v",H40,I40)) -> 0 | E8: =IF(Calculo!$C$6="Si",IF($B$26="v",F68,G68),IF($B$26="v",F40,G40)) -> 0 | F8: =IF(Calculo!$C$6="Si",IF($B$26="v",F68,G68),IF($B$26="v",F40,G40)) -> 0 | G8: =IF(Calculo!$C$6="Si",IF($B$26="v",F68,G68),IF($B$26="v",F40,G40)) -> 0 | H8: =IF(Calculo!$C$6="Si",IF($B$26="v",F68,G68),IF($B$26="v",F40,G40)) -> 0 | I8: =IF(Calculo!$C$6="Si",IF($B$26="v",F68,G68),IF($B$26="v",F40,G40)) -> 0 | J8: =IF(Calculo!$C$6="Si",IF($B$26="v",F68,G68),IF($B$26="v",F40,G40)) -> 0 | K8: =IF(Calculo!$C$6="Si",IF($B$26="v",F68,G68),IF($B$26="v",F40,G40)) -> 0 | L8: =IF(Calculo!$C$6="Si",IF($B$26="v",F68,G68),IF($B$26="v",F40,G40)) -> 0 | M8: =IF(Calculo!$C$6="Si",IF($B$26="v",J68,K68),IF($B$26="v",J40,K40)) -> 0 | N8: =IF(Calculo!$C$6="Si",IF($B$26="v",L68,M68),IF($B$26="v",L40,M40)) -> 0
C9: 6 | D9: =IF(Calculo!$C$6="Si",IF($B$26="v",H69,I69),IF($B$26="v",H41,I41)) -> 0 | E9: =IF(Calculo!$C$6="Si",IF($B$26="v",F69,G69),IF($B$26="v",F41,G41)) -> 56.55 | F9: =IF(Calculo!$C$6="Si",IF($B$26="v",F69,G69),IF($B$26="v",F41,G41)) -> 56.55 | G9: =IF(Calculo!$C$6="Si",IF($B$26="v",F69,G69),IF($B$26="v",F41,G41)) -> 56.55 | H9: =IF(Calculo!$C$6="Si",IF($B$26="v",F69,G69),IF($B$26="v",F41,G41)) -> 56.55 | I9: =IF(Calculo!$C$6="Si",IF($B$26="v",F69,G69),IF($B$26="v",F41,G41)) -> 56.55 | J9: =IF(Calculo!$C$6="Si",IF($B$26="v",F69,G69),IF($B$26="v",F41,G41)) -> 56.55 | K9: =IF(Calculo!$C$6="Si",IF($B$26="v",F69,G69),IF($B$26="v",F41,G41)) -> 56.55 | L9: =IF(Calculo!$C$6="Si",IF($B$26="v",F69,G69),IF($B$26="v",F41,G41)) -> 56.55 | M9: =IF(Calculo!$C$6="Si",IF($B$26="v",J69,K69),IF($B$26="v",J41,K41)) -> 75.4 | N9: =IF(Calculo!$C$6="Si",IF($B$26="v",L69,M69),IF($B$26="v",L41,M41)) -> 0
C10: 7 | D10: =IF(Calculo!$C$6="Si",IF($B$26="v",H70,I70),IF($B$26="v",H42,I42)) -> 0 | E10: =IF(Calculo!$C$6="Si",IF($B$26="v",F70,G70),IF($B$26="v",F42,G42)) -> 0 | F10: =IF(Calculo!$C$6="Si",IF($B$26="v",F70,G70),IF($B$26="v",F42,G42)) -> 0 | G10: =IF(Calculo!$C$6="Si",IF($B$26="v",F70,G70),IF($B$26="v",F42,G42)) -> 0 | H10: =IF(Calculo!$C$6="Si",IF($B$26="v",F70,G70),IF($B$26="v",F42,G42)) -> 0 | I10: =IF(Calculo!$C$6="Si",IF($B$26="v",F70,G70),IF($B$26="v",F42,G42)) -> 0 | J10: =IF(Calculo!$C$6="Si",IF($B$26="v",F70,G70),IF($B$26="v",F42,G42)) -> 0 | K10: =IF(Calculo!$C$6="Si",IF($B$26="v",F70,G70),IF($B$26="v",F42,G42)) -> 0 | L10: =IF(Calculo!$C$6="Si",IF($B$26="v",F70,G70),IF($B$26="v",F42,G42)) -> 0 | M10: =IF(Calculo!$C$6="Si",IF($B$26="v",J70,K70),IF($B$26="v",J42,K42)) -> 0 | N10: =IF(Calculo!$C$6="Si",IF($B$26="v",L70,M70),IF($B$26="v",L42,M42)) -> 0
C11: 8 | D11: =IF(Calculo!$C$6="Si",IF($B$26="v",H71,I71),IF($B$26="v",H43,I43)) -> 0 | E11: =IF(Calculo!$C$6="Si",IF($B$26="v",F71,G71),IF($B$26="v",F43,G43)) -> 0 | F11: =IF(Calculo!$C$6="Si",IF($B$26="v",F71,G71),IF($B$26="v",F43,G43)) -> 0 | G11: =IF(Calculo!$C$6="Si",IF($B$26="v",F71,G71),IF($B$26="v",F43,G43)) -> 0 | H11: =IF(Calculo!$C$6="Si",IF($B$26="v",F71,G71),IF($B$26="v",F43,G43)) -> 0 | I11: =IF(Calculo!$C$6="Si",IF($B$26="v",F71,G71),IF($B$26="v",F43,G43)) -> 0 | J11: =IF(Calculo!$C$6="Si",IF($B$26="v",F71,G71),IF($B$26="v",F43,G43)) -> 0 | K11: =IF(Calculo!$C$6="Si",IF($B$26="v",F71,G71),IF($B$26="v",F43,G43)) -> 0 | L11: =IF(Calculo!$C$6="Si",IF($B$26="v",F71,G71),IF($B$26="v",F43,G43)) -> 0 | M11: =IF(Calculo!$C$6="Si",IF($B$26="v",J71,K71),IF($B$26="v",J43,K43)) -> 0 | N11: =IF(Calculo!$C$6="Si",IF($B$26="v",L71,M71),IF($B$26="v",L43,M43)) -> 0
C12: 9 | D12: =IF(Calculo!$C$6="Si",IF($B$26="v",H72,I72),IF($B$26="v",H44,I44)) -> 0 | E12: =IF(Calculo!$C$6="Si",IF($B$26="v",F72,G72),IF($B$26="v",F44,G44)) -> 0 | F12: =IF(Calculo!$C$6="Si",IF($B$26="v",F72,G72),IF($B$26="v",F44,G44)) -> 0 | G12: =IF(Calculo!$C$6="Si",IF($B$26="v",F72,G72),IF($B$26="v",F44,G44)) -> 0 | H12: =IF(Calculo!$C$6="Si",IF($B$26="v",F72,G72),IF($B$26="v",F44,G44)) -> 0 | I12: =IF(Calculo!$C$6="Si",IF($B$26="v",F72,G72),IF($B$26="v",F44,G44)) -> 0 | J12: =IF(Calculo!$C$6="Si",IF($B$26="v",F72,G72),IF($B$26="v",F44,G44)) -> 0 | K12: =IF(Calculo!$C$6="Si",IF($B$26="v",F72,G72),IF($B$26="v",F44,G44)) -> 0 | L12: =IF(Calculo!$C$6="Si",IF($B$26="v",F72,G72),IF($B$26="v",F44,G44)) -> 0 | M12: =IF(Calculo!$C$6="Si",IF($B$26="v",J72,K72),IF($B$26="v",J44,K44)) -> 0 | N12: =IF(Calculo!$C$6="Si",IF($B$26="v",L72,M72),IF($B$26="v",L44,M44)) -> 0
C13: 10 | D13: =IF(Calculo!$C$6="Si",IF($B$26="v",H73,I73),IF($B$26="v",H45,I45)) -> 0 | E13: =IF(Calculo!$C$6="Si",IF($B$26="v",F73,G73),IF($B$26="v",F45,G45)) -> 0 | F13: =IF(Calculo!$C$6="Si",IF($B$26="v",F73,G73),IF($B$26="v",F45,G45)) -> 0 | G13: =IF(Calculo!$C$6="Si",IF($B$26="v",F73,G73),IF($B$26="v",F45,G45)) -> 0 | H13: =IF(Calculo!$C$6="Si",IF($B$26="v",F73,G73),IF($B$26="v",F45,G45)) -> 0 | I13: =IF(Calculo!$C$6="Si",IF($B$26="v",F73,G73),IF($B$26="v",F45,G45)) -> 0 | J13: =IF(Calculo!$C$6="Si",IF($B$26="v",F73,G73),IF($B$26="v",F45,G45)) -> 0 | K13: =IF(Calculo!$C$6="Si",IF($B$26="v",F73,G73),IF($B$26="v",F45,G45)) -> 0 | L13: =IF(Calculo!$C$6="Si",IF($B$26="v",F73,G73),IF($B$26="v",F45,G45)) -> 0 | M13: =IF(Calculo!$C$6="Si",IF($B$26="v",J73,K73),IF($B$26="v",J45,K45)) -> 0 | N13: =IF(Calculo!$C$6="Si",IF($B$26="v",L73,M73),IF($B$26="v",L45,M45)) -> 0
C14: 11 | D14: =IF(Calculo!$C$6="Si",IF($B$26="v",H74,I74),IF($B$26="v",H46,I46)) -> 0 | E14: =IF(Calculo!$C$6="Si",IF($B$26="v",F74,G74),IF($B$26="v",F46,G46)) -> 0 | F14: =IF(Calculo!$C$6="Si",IF($B$26="v",F74,G74),IF($B$26="v",F46,G46)) -> 0 | G14: =IF(Calculo!$C$6="Si",IF($B$26="v",F74,G74),IF($B$26="v",F46,G46)) -> 0 | H14: =IF(Calculo!$C$6="Si",IF($B$26="v",F74,G74),IF($B$26="v",F46,G46)) -> 0 | I14: =IF(Calculo!$C$6="Si",IF($B$26="v",F74,G74),IF($B$26="v",F46,G46)) -> 0 | J14: =IF(Calculo!$C$6="Si",IF($B$26="v",F74,G74),IF($B$26="v",F46,G46)) -> 0 | K14: =IF(Calculo!$C$6="Si",IF($B$26="v",F74,G74),IF($B$26="v",F46,G46)) -> 0 | L14: =IF(Calculo!$C$6="Si",IF($B$26="v",F74,G74),IF($B$26="v",F46,G46)) -> 0 | M14: =IF(Calculo!$C$6="Si",IF($B$26="v",J74,K74),IF($B$26="v",J46,K46)) -> 0 | N14: =IF(Calculo!$C$6="Si",IF($B$26="v",L74,M74),IF($B$26="v",L46,M46)) -> 0
C15: 12 | D15: =IF(Calculo!$C$6="Si",IF($B$26="v",H75,I75),IF($B$26="v",H47,I47)) -> 0 | E15: =IF(Calculo!$C$6="Si",IF($B$26="v",F75,G75),IF($B$26="v",F47,G47)) -> 0 | F15: =IF(Calculo!$C$6="Si",IF($B$26="v",F75,G75),IF($B$26="v",F47,G47)) -> 0 | G15: =IF(Calculo!$C$6="Si",IF($B$26="v",F75,G75),IF($B$26="v",F47,G47)) -> 0 | H15: =IF(Calculo!$C$6="Si",IF($B$26="v",F75,G75),IF($B$26="v",F47,G47)) -> 0 | I15: =IF(Calculo!$C$6="Si",IF($B$26="v",F75,G75),IF($B$26="v",F47,G47)) -> 0 | J15: =IF(Calculo!$C$6="Si",IF($B$26="v",F75,G75),IF($B$26="v",F47,G47)) -> 0 | K15: =IF(Calculo!$C$6="Si",IF($B$26="v",F75,G75),IF($B$26="v",F47,G47)) -> 0 | L15: =IF(Calculo!$C$6="Si",IF($B$26="v",F75,G75),IF($B$26="v",F47,G47)) -> 0 | M15: =IF(Calculo!$C$6="Si",IF($B$26="v",J75,K75),IF($B$26="v",J47,K47)) -> 0 | N15: =IF(Calculo!$C$6="Si",IF($B$26="v",L75,M75),IF($B$26="v",L47,M47)) -> 0
C16: 13 | D16: =IF(Calculo!$C$6="Si",IF($B$26="v",H76,I76),IF($B$26="v",H48,I48)) -> 0 | E16: =IF(Calculo!$C$6="Si",IF($B$26="v",F76,G76),IF($B$26="v",F48,G48)) -> 0 | F16: =IF(Calculo!$C$6="Si",IF($B$26="v",F76,G76),IF($B$26="v",F48,G48)) -> 0 | G16: =IF(Calculo!$C$6="Si",IF($B$26="v",F76,G76),IF($B$26="v",F48,G48)) -> 0 | H16: =IF(Calculo!$C$6="Si",IF($B$26="v",F76,G76),IF($B$26="v",F48,G48)) -> 0 | I16: =IF(Calculo!$C$6="Si",IF($B$26="v",F76,G76),IF($B$26="v",F48,G48)) -> 0 | J16: =IF(Calculo!$C$6="Si",IF($B$26="v",F76,G76),IF($B$26="v",F48,G48)) -> 0 | K16: =IF(Calculo!$C$6="Si",IF($B$26="v",F76,G76),IF($B$26="v",F48,G48)) -> 0 | L16: =IF(Calculo!$C$6="Si",IF($B$26="v",F76,G76),IF($B$26="v",F48,G48)) -> 0 | M16: =IF(Calculo!$C$6="Si",IF($B$26="v",J76,K76),IF($B$26="v",J48,K48)) -> 0 | N16: =IF(Calculo!$C$6="Si",IF($B$26="v",L76,M76),IF($B$26="v",L48,M48)) -> 0
C17: 14 | D17: =IF(Calculo!$C$6="Si",IF($B$26="v",H77,I77),IF($B$26="v",H49,I49)) -> 0 | E17: =IF(Calculo!$C$6="Si",IF($B$26="v",F77,G77),IF($B$26="v",F49,G49)) -> 0 | F17: =IF(Calculo!$C$6="Si",IF($B$26="v",F77,G77),IF($B$26="v",F49,G49)) -> 0 | G17: =IF(Calculo!$C$6="Si",IF($B$26="v",F77,G77),IF($B$26="v",F49,G49)) -> 0 | H17: =IF(Calculo!$C$6="Si",IF($B$26="v",F77,G77),IF($B$26="v",F49,G49)) -> 0 | I17: =IF(Calculo!$C$6="Si",IF($B$26="v",F77,G77),IF($B$26="v",F49,G49)) -> 0 | J17: =IF(Calculo!$C$6="Si",IF($B$26="v",F77,G77),IF($B$26="v",F49,G49)) -> 0 | K17: =IF(Calculo!$C$6="Si",IF($B$26="v",F77,G77),IF($B$26="v",F49,G49)) -> 0 | L17: =IF(Calculo!$C$6="Si",IF($B$26="v",F77,G77),IF($B$26="v",F49,G49)) -> 0 | M17: =IF(Calculo!$C$6="Si",IF($B$26="v",J77,K77),IF($B$26="v",J49,K49)) -> 0 | N17: =IF(Calculo!$C$6="Si",IF($B$26="v",L77,M77),IF($B$26="v",L49,M49)) -> 0
C18: 15 | D18: =IF(Calculo!$C$6="Si",IF($B$26="v",H78,I78),IF($B$26="v",H50,I50)) -> 0 | E18: =IF(Calculo!$C$6="Si",IF($B$26="v",F78,G78),IF($B$26="v",F50,G50)) -> 0 | F18: =IF(Calculo!$C$6="Si",IF($B$26="v",F78,G78),IF($B$26="v",F50,G50)) -> 0 | G18: =IF(Calculo!$C$6="Si",IF($B$26="v",F78,G78),IF($B$26="v",F50,G50)) -> 0 | H18: =IF(Calculo!$C$6="Si",IF($B$26="v",F78,G78),IF($B$26="v",F50,G50)) -> 0 | I18: =IF(Calculo!$C$6="Si",IF($B$26="v",F78,G78),IF($B$26="v",F50,G50)) -> 0 | J18: =IF(Calculo!$C$6="Si",IF($B$26="v",F78,G78),IF($B$26="v",F50,G50)) -> 0 | K18: =IF(Calculo!$C$6="Si",IF($B$26="v",F78,G78),IF($B$26="v",F50,G50)) -> 0 | L18: =IF(Calculo!$C$6="Si",IF($B$26="v",F78,G78),IF($B$26="v",F50,G50)) -> 0 | M18: =IF(Calculo!$C$6="Si",IF($B$26="v",J78,K78),IF($B$26="v",J50,K50)) -> 0 | N18: =IF(Calculo!$C$6="Si",IF($B$26="v",L78,M78),IF($B$26="v",L50,M50)) -> 0
C19: 16 | D19: =IF(Calculo!$C$6="Si",IF($B$26="v",H79,I79),IF($B$26="v",H51,I51)) -> 0 | E19: =IF(Calculo!$C$6="Si",IF($B$26="v",F79,G79),IF($B$26="v",F51,G51)) -> 0 | F19: =IF(Calculo!$C$6="Si",IF($B$26="v",F79,G79),IF($B$26="v",F51,G51)) -> 0 | G19: =IF(Calculo!$C$6="Si",IF($B$26="v",F79,G79),IF($B$26="v",F51,G51)) -> 0 | H19: =IF(Calculo!$C$6="Si",IF($B$26="v",F79,G79),IF($B$26="v",F51,G51)) -> 0 | I19: =IF(Calculo!$C$6="Si",IF($B$26="v",F79,G79),IF($B$26="v",F51,G51)) -> 0 | J19: =IF(Calculo!$C$6="Si",IF($B$26="v",F79,G79),IF($B$26="v",F51,G51)) -> 0 | K19: =IF(Calculo!$C$6="Si",IF($B$26="v",F79,G79),IF($B$26="v",F51,G51)) -> 0 | L19: =IF(Calculo!$C$6="Si",IF($B$26="v",F79,G79),IF($B$26="v",F51,G51)) -> 0 | M19: =IF(Calculo!$C$6="Si",IF($B$26="v",J79,K79),IF($B$26="v",J51,K51)) -> 0 | N19: =IF(Calculo!$C$6="Si",IF($B$26="v",L79,M79),IF($B$26="v",L51,M51)) -> 0
C20: 17 | D20: =IF(Calculo!$C$6="Si",IF($B$26="v",H80,I80),IF($B$26="v",H52,I52)) -> 0 | E20: =IF(Calculo!$C$6="Si",IF($B$26="v",F80,G80),IF($B$26="v",F52,G52)) -> 0 | F20: =IF(Calculo!$C$6="Si",IF($B$26="v",F80,G80),IF($B$26="v",F52,G52)) -> 0 | G20: =IF(Calculo!$C$6="Si",IF($B$26="v",F80,G80),IF($B$26="v",F52,G52)) -> 0 | H20: =IF(Calculo!$C$6="Si",IF($B$26="v",F80,G80),IF($B$26="v",F52,G52)) -> 0 | I20: =IF(Calculo!$C$6="Si",IF($B$26="v",F80,G80),IF($B$26="v",F52,G52)) -> 0 | J20: =IF(Calculo!$C$6="Si",IF($B$26="v",F80,G80),IF($B$26="v",F52,G52)) -> 0 | K20: =IF(Calculo!$C$6="Si",IF($B$26="v",F80,G80),IF($B$26="v",F52,G52)) -> 0 | L20: =IF(Calculo!$C$6="Si",IF($B$26="v",F80,G80),IF($B$26="v",F52,G52)) -> 0 | M20: =IF(Calculo!$C$6="Si",IF($B$26="v",J80,K80),IF($B$26="v",J52,K52)) -> 0 | N20: =IF(Calculo!$C$6="Si",IF($B$26="v",L80,M80),IF($B$26="v",L52,M52)) -> 0
C21: 18 | D21: =IF(Calculo!$C$6="Si",IF($B$26="v",H81,I81),IF($B$26="v",H53,I53)) -> 0 | E21: =IF(Calculo!$C$6="Si",IF($B$26="v",F81,G81),IF($B$26="v",F53,G53)) -> 0 | F21: =IF(Calculo!$C$6="Si",IF($B$26="v",F81,G81),IF($B$26="v",F53,G53)) -> 0 | G21: =IF(Calculo!$C$6="Si",IF($B$26="v",F81,G81),IF($B$26="v",F53,G53)) -> 0 | H21: =IF(Calculo!$C$6="Si",IF($B$26="v",F81,G81),IF($B$26="v",F53,G53)) -> 0 | I21: =IF(Calculo!$C$6="Si",IF($B$26="v",F81,G81),IF($B$26="v",F53,G53)) -> 0 | J21: =IF(Calculo!$C$6="Si",IF($B$26="v",F81,G81),IF($B$26="v",F53,G53)) -> 0 | K21: =IF(Calculo!$C$6="Si",IF($B$26="v",F81,G81),IF($B$26="v",F53,G53)) -> 0 | L21: =IF(Calculo!$C$6="Si",IF($B$26="v",F81,G81),IF($B$26="v",F53,G53)) -> 0 | M21: =IF(Calculo!$C$6="Si",IF($B$26="v",J81,K81),IF($B$26="v",J53,K53)) -> 0 | N21: =IF(Calculo!$C$6="Si",IF($B$26="v",L81,M81),IF($B$26="v",L53,M53)) -> 0
C22: 19 | D22: =IF(Calculo!$C$6="Si",IF($B$26="v",H82,I82),IF($B$26="v",H54,I54)) -> 0 | E22: =IF(Calculo!$C$6="Si",IF($B$26="v",F82,G82),IF($B$26="v",F54,G54)) -> 0 | F22: =IF(Calculo!$C$6="Si",IF($B$26="v",F82,G82),IF($B$26="v",F54,G54)) -> 0 | G22: =IF(Calculo!$C$6="Si",IF($B$26="v",F82,G82),IF($B$26="v",F54,G54)) -> 0 | H22: =IF(Calculo!$C$6="Si",IF($B$26="v",F82,G82),IF($B$26="v",F54,G54)) -> 0 | I22: =IF(Calculo!$C$6="Si",IF($B$26="v",F82,G82),IF($B$26="v",F54,G54)) -> 0 | J22: =IF(Calculo!$C$6="Si",IF($B$26="v",F82,G82),IF($B$26="v",F54,G54)) -> 0 | K22: =IF(Calculo!$C$6="Si",IF($B$26="v",F82,G82),IF($B$26="v",F54,G54)) -> 0 | L22: =IF(Calculo!$C$6="Si",IF($B$26="v",F82,G82),IF($B$26="v",F54,G54)) -> 0 | M22: =IF(Calculo!$C$6="Si",IF($B$26="v",J82,K82),IF($B$26="v",J54,K54)) -> 0 | N22: =IF(Calculo!$C$6="Si",IF($B$26="v",L82,M82),IF($B$26="v",L54,M54)) -> 0
C23: 20 | D23: =IF(Calculo!$C$6="Si",IF($B$26="v",H83,I83),IF($B$26="v",H55,I55)) -> 0 | E23: =IF(Calculo!$C$6="Si",IF($B$26="v",F83,G83),IF($B$26="v",F55,G55)) -> 0 | F23: =IF(Calculo!$C$6="Si",IF($B$26="v",F83,G83),IF($B$26="v",F55,G55)) -> 0 | G23: =IF(Calculo!$C$6="Si",IF($B$26="v",F83,G83),IF($B$26="v",F55,G55)) -> 0 | H23: =IF(Calculo!$C$6="Si",IF($B$26="v",F83,G83),IF($B$26="v",F55,G55)) -> 0 | I23: =IF(Calculo!$C$6="Si",IF($B$26="v",F83,G83),IF($B$26="v",F55,G55)) -> 0 | J23: =IF(Calculo!$C$6="Si",IF($B$26="v",F83,G83),IF($B$26="v",F55,G55)) -> 0 | K23: =IF(Calculo!$C$6="Si",IF($B$26="v",F83,G83),IF($B$26="v",F55,G55)) -> 0 | L23: =IF(Calculo!$C$6="Si",IF($B$26="v",F83,G83),IF($B$26="v",F55,G55)) -> 0 | M23: =IF(Calculo!$C$6="Si",IF($B$26="v",J83,K83),IF($B$26="v",J55,K55)) -> 0 | N23: =IF(Calculo!$C$6="Si",IF($B$26="v",L83,M83),IF($B$26="v",L55,M55)) -> 0
C24: 21 | D24: =IF(Calculo!$C$6="Si",IF($B$26="v",H84,I84),IF($B$26="v",H56,I56)) -> 0 | E24: =IF(Calculo!$C$6="Si",IF($B$26="v",F84,G84),IF($B$26="v",F56,G56)) -> 0 | F24: =IF(Calculo!$C$6="Si",IF($B$26="v",F84,G84),IF($B$26="v",F56,G56)) -> 0 | G24: =IF(Calculo!$C$6="Si",IF($B$26="v",F84,G84),IF($B$26="v",F56,G56)) -> 0 | H24: =IF(Calculo!$C$6="Si",IF($B$26="v",F84,G84),IF($B$26="v",F56,G56)) -> 0 | I24: =IF(Calculo!$C$6="Si",IF($B$26="v",F84,G84),IF($B$26="v",F56,G56)) -> 0 | J24: =IF(Calculo!$C$6="Si",IF($B$26="v",F84,G84),IF($B$26="v",F56,G56)) -> 0 | K24: =IF(Calculo!$C$6="Si",IF($B$26="v",F84,G84),IF($B$26="v",F56,G56)) -> 0 | L24: =IF(Calculo!$C$6="Si",IF($B$26="v",F84,G84),IF($B$26="v",F56,G56)) -> 0 | M24: =IF(Calculo!$C$6="Si",IF($B$26="v",J84,K84),IF($B$26="v",J56,K56)) -> 0 | N24: =IF(Calculo!$C$6="Si",IF($B$26="v",L84,M84),IF($B$26="v",L56,M56)) -> 0
B25: Cat. Mes | C25: 22 | D25: =IF(Calculo!$C$6="Si",IF($B$26="v",H85,I85),IF($B$26="v",H57,I57)) -> 0 | E25: =IF(Calculo!$C$6="Si",IF($B$26="v",F85,G85),IF($B$26="v",F57,G57)) -> 0 | F25: =IF(Calculo!$C$6="Si",IF($B$26="v",F85,G85),IF($B$26="v",F57,G57)) -> 0 | G25: =IF(Calculo!$C$6="Si",IF($B$26="v",F85,G85),IF($B$26="v",F57,G57)) -> 0 | H25: =IF(Calculo!$C$6="Si",IF($B$26="v",F85,G85),IF($B$26="v",F57,G57)) -> 0 | I25: =IF(Calculo!$C$6="Si",IF($B$26="v",F85,G85),IF($B$26="v",F57,G57)) -> 0 | J25: =IF(Calculo!$C$6="Si",IF($B$26="v",F85,G85),IF($B$26="v",F57,G57)) -> 0 | K25: =IF(Calculo!$C$6="Si",IF($B$26="v",F85,G85),IF($B$26="v",F57,G57)) -> 0 | L25: =IF(Calculo!$C$6="Si",IF($B$26="v",F85,G85),IF($B$26="v",F57,G57)) -> 0 | M25: =IF(Calculo!$C$6="Si",IF($B$26="v",J85,K85),IF($B$26="v",J57,K57)) -> 0 | N25: =IF(Calculo!$C$6="Si",IF($B$26="v",L85,M85),IF($B$26="v",L57,M57)) -> 0
B26: =+Datos!AF3 -> 0 | C26: 23 | D26: =IF(Calculo!$C$6="Si",IF($B$26="v",H86,I86),IF($B$26="v",H58,I58)) -> 0 | E26: =IF(Calculo!$C$6="Si",IF($B$26="v",F86,G86),IF($B$26="v",F58,G58)) -> 0 | F26: =IF(Calculo!$C$6="Si",IF($B$26="v",F86,G86),IF($B$26="v",F58,G58)) -> 0 | G26: =IF(Calculo!$C$6="Si",IF($B$26="v",F86,G86),IF($B$26="v",F58,G58)) -> 0 | H26: =IF(Calculo!$C$6="Si",IF($B$26="v",F86,G86),IF($B$26="v",F58,G58)) -> 0 | I26: =IF(Calculo!$C$6="Si",IF($B$26="v",F86,G86),IF($B$26="v",F58,G58)) -> 0 | J26: =IF(Calculo!$C$6="Si",IF($B$26="v",F86,G86),IF($B$26="v",F58,G58)) -> 0 | K26: =IF(Calculo!$C$6="Si",IF($B$26="v",F86,G86),IF($B$26="v",F58,G58)) -> 0 | L26: =IF(Calculo!$C$6="Si",IF($B$26="v",F86,G86),IF($B$26="v",F58,G58)) -> 0 | M26: =IF(Calculo!$C$6="Si",IF($B$26="v",J86,K86),IF($B$26="v",J58,K58)) -> 0 | N26: =IF(Calculo!$C$6="Si",IF($B$26="v",L86,M86),IF($B$26="v",L58,M58)) -> 0
C27: 24 | D27: =IF(Calculo!$C$6="Si",IF($B$26="v",H87,I87),IF($B$26="v",H59,I59)) -> 0 | E27: =IF(Calculo!$C$6="Si",IF($B$26="v",F87,G87),IF($B$26="v",F59,G59)) -> 0 | F27: =IF(Calculo!$C$6="Si",IF($B$26="v",F87,G87),IF($B$26="v",F59,G59)) -> 0 | G27: =IF(Calculo!$C$6="Si",IF($B$26="v",F87,G87),IF($B$26="v",F59,G59)) -> 0 | H27: =IF(Calculo!$C$6="Si",IF($B$26="v",F87,G87),IF($B$26="v",F59,G59)) -> 0 | I27: =IF(Calculo!$C$6="Si",IF($B$26="v",F87,G87),IF($B$26="v",F59,G59)) -> 0 | J27: =IF(Calculo!$C$6="Si",IF($B$26="v",F87,G87),IF($B$26="v",F59,G59)) -> 0 | K27: =IF(Calculo!$C$6="Si",IF($B$26="v",F87,G87),IF($B$26="v",F59,G59)) -> 0 | L27: =IF(Calculo!$C$6="Si",IF($B$26="v",F87,G87),IF($B$26="v",F59,G59)) -> 0 | M27: =IF(Calculo!$C$6="Si",IF($B$26="v",J87,K87),IF($B$26="v",J59,K59)) -> 0 | N27: =IF(Calculo!$C$6="Si",IF($B$26="v",L87,M87),IF($B$26="v",L59,M59)) -> 0
R32: =+COLUMN(R33) -> 18
E33: T° Libre | P33: =+COLUMN(P34) -> 16 | S33: Espesor de calculo
F34: Muros | H34: Techos | J34: Pisos_v | L34: Pisos_t | P34: e Eq H.A | Q34: 6.976106838 | R34: 6.976106838 | S34: =+IF($B$26="v",Q34,R34) -> 6.976106838
F35: SA Verano | G35: SA Invierno | H35: SA Verano | I35: SA Invierno | J35: SA Verano | K35: SA Invierno | L35: SA Verano | M35: SA Invierno | P35: Área eq H.A | Q35: 242.2873016
E36: 1 | F36: 0 | G36: 0 | H36: 0 | I36: 0 | J36: 0 | K36: 0 | L36: 0 | M36: 0
E37: =+E36+1 -> 2 | F37: 0 | G37: 0 | H37: 0 | I37: 0 | J37: 0 | K37: 0 | L37: 0 | M37: 0 | P37: Amortiguamiento | Q37: CTm | R37: fi
E38: =+E37+1 -> 3 | F38: 0 | G38: 0 | H38: -12.178 | I38: 58.002 | J38: 0 | K38: 0 | L38: 0 | M38: 0 | P38: 0.3688551884 | Q38: 4.175959934 | R38: 1.854065265
E39: 4 | F39: 0 | G39: 0 | H39: 0 | I39: 0 | J39: 0 | K39: 0 | L39: 0 | M39: 0
E40: 5 | F40: 0 | G40: 0 | H40: 0 | I40: 0 | J40: 0 | K40: 0 | L40: 0 | M40: 0 | P40: Participación de Masa
E41: 6 | F41: -13.62 | G41: 56.55 | H41: 0 | I41: 0 | J41: -18.16 | K41: 75.4 | L41: 0 | M41: 0 | P41: Techo | Q41: 0.03151116621
E42: 7 | F42: 0 | G42: 0 | H42: 0 | I42: 0 | J42: 0 | K42: 0 | L42: 0 | M42: 0 | P42: Muros | Q42: 0.3651323464
E43: 8 | F43: 0 | G43: 0 | H43: 0 | I43: 0 | J43: 0 | K43: 0 | L43: 0 | M43: 0 | P43: Piso v | Q43: 0.4733105782
E44: 9 | F44: 0 | G44: 0 | H44: 0 | I44: 0 | J44: 0 | K44: 0 | L44: 0 | M44: 0 | P44: Piso t | Q44: 0
E45: 10 | F45: 0 | G45: 0 | H45: 0 | I45: 0 | J45: 0 | K45: 0 | L45: 0 | M45: 0 | P45: Masa ad | Q45: 0.1300459092
E46: 11 | F46: 0 | G46: 0 | H46: 0 | I46: 0 | J46: 0 | K46: 0 | L46: 0 | M46: 0
E47: 12 | F47: 0 | G47: 0 | H47: 0 | I47: 0 | J47: 0 | K47: 0 | L47: 0 | M47: 0 | P47: dpm | Q47: =+IF(S34>=7,5,3) -> 3
E48: 13 | F48: 0 | G48: 0 | H48: 0 | I48: 0 | J48: 0 | K48: 0 | L48: 0 | M48: 0
E49: 14 | F49: 0 | G49: 0 | H49: 0 | I49: 0 | J49: 0 | K49: 0 | L49: 0 | M49: 0
E50: 15 | F50: 0 | G50: 0 | H50: 0 | I50: 0 | J50: 0 | K50: 0 | L50: 0 | M50: 0
E51: 16 | F51: 0 | G51: 0 | H51: 0 | I51: 0 | J51: 0 | K51: 0 | L51: 0 | M51: 0
E52: 17 | F52: 0 | G52: 0 | H52: 0 | I52: 0 | J52: 0 | K52: 0 | L52: 0 | M52: 0
E53: 18 | F53: 0 | G53: 0 | H53: 0 | I53: 0 | J53: 0 | K53: 0 | L53: 0 | M53: 0
E54: 19 | F54: 0 | G54: 0 | H54: 0 | I54: 0 | J54: 0 | K54: 0 | L54: 0 | M54: 0
E55: 20 | F55: 0 | G55: 0 | H55: 0 | I55: 0 | J55: 0 | K55: 0 | L55: 0 | M55: 0
E56: 21 | F56: 0 | G56: 0 | H56: 0 | I56: 0 | J56: 0 | K56: 0 | L56: 0 | M56: 0
E57: 22 | F57: 0 | G57: 0 | H57: 0 | I57: 0 | J57: 0 | K57: 0 | L57: 0 | M57: 0
E58: 23 | F58: 0 | G58: 0 | H58: 0 | I58: 0 | J58: 0 | K58: 0 | L58: 0 | M58: 0
E59: 24 | F59: 0 | G59: 0 | H59: 0 | I59: 0 | J59: 0 | K59: 0 | L59: 0 | M59: 0
E61: Con Clima
F62: Muros | H62: Techos | J62: Pisos_v | L62: Pisos_t
F63: SA Verano | G63: SA Invierno | H63: SA Verano | I63: SA Invierno | J63: SA Verano | K63: SA Invierno | L63: SA Verano | M63: SA Invierno
E64: 1 | F64: 0 | G64: 0 | H64: 0 | I64: 0 | J64: 0 | K64: 0 | L64: 0 | M64: 0
E65: =+E64+1 -> 2 | F65: 0 | G65: 0 | H65: 0 | I65: 0 | J65: 0 | K65: 0 | L65: 0 | M65: 0
E66: =+E65+1 -> 3 | F66: 0 | G66: 0 | H66: -12.178 | I66: 58.002 | J66: 0 | K66: 0 | L66: 0 | M66: 0
E67: 4 | F67: 0 | G67: 0 | H67: 0 | I67: 0 | J67: 0 | K67: 0 | L67: 0 | M67: 0
E68: 5 | F68: 0 | G68: 0 | H68: 0 | I68: 0 | J68: 0 | K68: 0 | L68: 0 | M68: 0
E69: 6 | F69: -13.62 | G69: 56.55 | H69: 0 | I69: 0 | J69: -18.16 | K69: 75.4 | L69: 0 | M69: 0
E70: 7 | F70: 0 | G70: 0 | H70: 0 | I70: 0 | J70: 0 | K70: 0 | L70: 0 | M70: 0
E71: 8 | F71: 0 | G71: 0 | H71: 0 | I71: 0 | J71: 0 | K71: 0 | L71: 0 | M71: 0
E72: 9 | F72: 0 | G72: 0 | H72: 0 | I72: 0 | J72: 0 | K72: 0 | L72: 0 | M72: 0
E73: 10 | F73: 0 | G73: 0 | H73: 0 | I73: 0 | J73: 0 | K73: 0 | L73: 0 | M73: 0
E74: 11 | F74: 0 | G74: 0 | H74: 0 | I74: 0 | J74: 0 | K74: 0 | L74: 0 | M74: 0
E75: 12 | F75: 0 | G75: 0 | H75: 0 | I75: 0 | J75: 0 | K75: 0 | L75: 0 | M75: 0
E76: 13 | F76: 0 | G76: 0 | H76: 0 | I76: 0 | J76: 0 | K76: 0 | L76: 0 | M76: 0
E77: 14 | F77: 0 | G77: 0 | H77: 0 | I77: 0 | J77: 0 | K77: 0 | L77: 0 | M77: 0
E78: 15 | F78: 0 | G78: 0 | H78: 0 | I78: 0 | J78: 0 | K78: 0 | L78: 0 | M78: 0
E79: 16 | F79: 0 | G79: 0 | H79: 0 | I79: 0 | J79: 0 | K79: 0 | L79: 0 | M79: 0
E80: 17 | F80: 0 | G80: 0 | H80: 0 | I80: 0 | J80: 0 | K80: 0 | L80: 0 | M80: 0
E81: 18 | F81: 0 | G81: 0 | H81: 0 | I81: 0 | J81: 0 | K81: 0 | L81: 0 | M81: 0
E82: 19 | F82: 0 | G82: 0 | H82: 0 | I82: 0 | J82: 0 | K82: 0 | L82: 0 | M82: 0
E83: 20 | F83: 0 | G83: 0 | H83: 0 | I83: 0 | J83: 0 | K83: 0 | L83: 0 | M83: 0
E84: 21 | F84: 0 | G84: 0 | H84: 0 | I84: 0 | J84: 0 | K84: 0 | L84: 0 | M84: 0
E85: 22 | F85: 0 | G85: 0 | H85: 0 | I85: 0 | J85: 0 | K85: 0 | L85: 0 | M85: 0
E86: 23 | F86: 0 | G86: 0 | H86: 0 | I86: 0 | J86: 0 | K86: 0 | L86: 0 | M86: 0
E87: 24 | F87: 0 | G87: 0 | H87: 0 | I87: 0 | J87: 0 | K87: 0 | L87: 0 | M87: 0

Sheet CEV-CEVE (hidden)
C1: CALIFICACIÓN ENERGÉTICA EN VIVIENDAS EN CHILE
D3: 1.- Características de la vivienda
D5: 1.1.- Datos generales e identificación del proyecto
B7: 1 | C7: Tipo de Calificación | E7: Calificación | G7: Vivienda nueva
B8: 2 | C8: Región | E8: I_Región_de_Tarapacá
B9: 3 | C9: Comuna | E9: Huara | I9: Tiene las siguientes Zonas Térmicas | L9: A | M9: B | N9: H
B10: 4 | C10: Zona Térmica Proyecto | E10: B | L10: 1 | M10: 1 | N10: 5 | O10: 1 | AB10: Puertas
B11: 5 | C11: Dormitorios de la vivienda | E11: 3 | AB11: Nombre | AC11: Abreviatura | AD11: U puerta opaca [W/m2K] | AE11: Vidrio | AF11: % Vidrio | AG11: U Marco [W/m2K] | AH11: % Marco | AI11: U ponderado | AJ11: U ponderado opaco | AK11: U vidrio [W/m2K]
B12: 5 | AB12: Madera Solida | AC12: MS | AD12: 1.91 | AE12: VM | AF12: 0 | AG12: 1.25 | AH12: 0.0878 | AI12: 1.852052 | AJ12: 1.852052 | AK12: 5.8
B13: 6 | C13: Identificación de la vivienda a evaluar | AB13: Madera con hasta 50% zona vidriada | AC13: MS < 50% Vidrio | AD13: 1.91 | AE13: VM | AF13: 0.4 | AG13: 1.25 | AH13: 0.0878 | AI13: 3.408052 | AJ13: 1.81342 | AK13: 5.8
B14: 7 | C14: Nombre del proyecto | AB14: Madera con hasta 100% zona vidriada | AC14: MS < 100% Vidrio | AD14: 1.91 | AE14: VM | AF14: 0.85 | AG14: 1.25 | AH14: 0.0878 | AI14: 5.158552 | AJ14: 1.52368 | AK14: 5.8
B15: 8 | C15: Dirección de la vivienda | AB15: Liviana de madera | AC15: ML | AD15: 2.63 | AE15: VM | AF15: 0 | AG15: 1.25 | AH15: 0.0878 | AI15: 2.508836 | AJ15: 2.508836 | AK15: 5.8
B16: 9 | C16: Tipo de vivienda | E16: Casa Pareada o continua | AB16: Liviana madera con hasta 50% zona vidriada | AC16: ML < 50% Vidrio | AD16: 2.53 | AE16: VM | AF16: 0.45 | AG16: 1.25 | AH16: 0.0878 | AI16: 3.889116 | AJ16: 2.325665455 | AK16: 5.8
B17: 9 | AB17: Liviana madera con hasta 100% zona vidriada | AC17: ML < 100% Vidrio | AD17: 2.18 | AE17: VM | AF17: 0.85 | AG17: 1.25 | AH17: 0.0878 | AI17: 5.175346 | AJ17: 1.63564 | AK17: 5.8
B18: 9 | AB18: Definido por usuario Puerta 1 | AC18: Abr. Puerta 1 | AI18: 0 | AJ18: 0 | AK18: 0
B19: 10 | C19: Rol vivienda | E19: 222-02 | AB19: Definido por usuario Puerta 2 | AC19: Abr. Puerta 2 | AI19: 0 | AJ19: 0 | AK19: 0
B20: 11 | C20: Evaluador energético | AB20: Definido por usuario Puerta 3 | AC20: Abr. Puerta 3 | AI20: 0 | AJ20: 0 | AK20: 0
B21: 12 | C21: Rol registro de Evaluadores: | AB21: Definido por usuario Puerta 4 | AC21: Abr. Puerta 4 | AI21: 0 | AJ21: 0 | AK21: 0
B22: 13 | C22: RUT Evaluador | AB22: Definido por usuario Puerta 5 | AC22: Abr. Puerta 5 | AI22: 0 | AJ22: 0 | AK22: 0
B23: 13 | AB23: Definido por usuario Puerta 6 | AC23: Abr. Puerta 6 | AI23: 0 | AJ23: 0 | AK23: 0
B24: 14 | C24: Versión Planilla | E24: 01.PBTD Datos de Arquitectura v1.40
B25: 15 | C25: Caso interno Evaluador | AB25: Vidrios
B26: 16 | C26: Iteración Evaluador | AB26: Nombre | AC26: Abreviatura | AD26: U vidrio [W/m2K] | AE26: FS Vidrio
B27: 16 | AB27: Vidrio Monolítico (VM). Sin espaciador | AC27: VM | AD27: 5.8 | AE27: 0.87
B28: 17 | C28: Solicitado por: | AB28: DVH con espaciador de 6mm | AC28: DVH con 6mm | AD28: 3.28 | AE28: 0.7743
B29: 18 | C29: RUT Mandante | AB29: DVH con espaciador de 9mm | AC29: DVH con 9mm | AD29: 3.01 | AE29: 0.7743
B30: 18 | AB30: DVH con espaciador de 12mm | AC30: DVH con 12mm | AD30: 2.85 | AE30: 0.7743
B31: 18 | D31: 1.2.- Descripción general de los elementos de la envolvente (esto sólo se utiliza en la confección del certificado) | AB31: DVH con espaciador de 15mm o mayor | AC31: DVH con 15mm o + | AD31: 2.8 | AE31: 0.7743
B32: 18 | AB32: Definido por usuario vidrio 1 | AC32: Abr. Vidrio 1
B33: 19 | C33: Muro principal | E33: Muro Definido por usuario Muro 1 con aislación por Exterior, de materialidad Pesado, con U= 0,21 [W/m2K], espesor solido15 [cm] y espesor aislante de 16 [cm] | AB33: Definido por usuario vidrio 2 | AC33: Abr. Vidrio 2
B34: 20 | C34: Muro secundario | E34: Muro Adiabatico espesor solido 20 [cm] | AB34: Definido por usuario vidrio 3 | AC34: Abr. Vidrio 3
B35: 21 | C35: Piso principal | E35: Piso Definido por usuario Piso 2 con aislación por Exterior, con U del piso ventilado = 0,39 [W/m2K], con aislación bajo piso de conductividad 0,04[ mK/W] , con refuerzo vertical de sobrecimiento con R100 = 125 [100*m2K/W] | AB35: Definido por usuario vidrio 4 | AC35: Abr. Vidrio 4
B36: 22 | C36: Techo principal | E36: Techo Definido por usuario Techo 1 con aislación por Exterior con U= 0,14 [W/m2K] y espesor aislante de 28 [cm] | AB36: Definido por usuario vidrio 5 | AC36: Abr. Vidrio 5
B37: 23 | C37: Techo secundario | E37: Techo Definido por usuario Techo 2 con aislación por Exterior con U= 0,24 [W/m2K] y espesor aislante de 14 [cm] | AB37: Definido por usuario vidrio 6 | AC37: Abr. Vidrio 6
B38: 24 | C38: Ventana principal: Vidrio y Marco | E38: Vidrio Definido por usuario vidrio 1 con U= 1,1 [W/m2K] y factor solar de 0,7 | O38: Marco con U= 5,8 [W/m2K] y factor Marco de 0,8 | AB38: Definido por usuario vidrio 7 | AC38: Abr. Vidrio 7
B39: 25 | C39: Ventana secundaria: Vidrio y Marco | E39: Vidrio Definido por usuario vidrio 1 con U= 1,1 [W/m2K] y factor solar de 0,7 | O39: Marco con U= 1,8 [W/m2K] y factor Marco de 0,8 | AB39: Definido por usuario vidrio 8 | AC39: Abr. Vidrio 8
B40: 26 | C40: Puerta principal | E40: Puerta Definido por usuario Puerta 1 con U= 1,7 [W/m2K] y 0 % de vidrio | AB40: Definido por usuario vidrio 9 | AC40: Abr. Vidrio 9
B41: 26 | AB41: Definido por usuario vidrio 10 | AC41: Abr. Vidrio 10
B42: 26 | D42: 1.3.- Descripción general de los sistemas de calefacción y agua caliente sanitaria | AB42: Definido por usuario vidrio 11 | AC42: Abr. Vidrio 11
B43: 26
B44: 27 | C44: Sistema de calefacción | AB44: Marcos Ventana
B45: 28 | C45: Sistema de agua caliente | AB45: Nombre tipo de Marcos | AC45: Abreviatura | AD45: Ufr [W/m2K] | AE45: FM
B46: 28 | AB46: Madera | AC46: Madera | AD46: 2.6 | AE46: 0.95
B47: 28 | AB47: Policloruro de Vinilo | AC47: PVC | AD47: 2.8 | AE47: 0.85
B48: 28 | D48: 2.- Dimensiones de la vivienda | AB48: Metal sin Ruptura de Puente Térmico | AC48: Sin RPT | AD48: 5.8 | AE48: 0.8
B49: 28 | AB49: Metal con Ruptura de Puente Térmico | AC49: Con RPT | AD49: 3.3 | AE49: 0.8
B50: 28 | D50: Area [m²] | E50: Altura [m] | F50: Volumen [m3] | AB50: Definido por usuario Marco 1 | AC50: Abr. Marco 1
B51: 28 | AB51: Definido por usuario Marco 2 | AC51: Abr. Marco 2
B52: 29 | C52: Piso 1 | D52: 80 | E52: 2.5 | F52: 200 | AB52: Definido por usuario Marco 3 | AC52: Abr. Marco 3
B53: 30 | C53: Piso 2 | F53: 0 | AB53: Definido por usuario Marco 4 | AC53: Abr. Marco 4
B54: 31 | C54: Piso 3+4+.. | F54: 0 | AB54: Definido por usuario Marco 5 | AC54: Abr. Marco 5
B55: 31 | AB55: Definido por usuario Marco 6 | AC55: Abr. Marco 6
B56: 32 | C56: Total | D56: 80 | F56: 200 | AB56: Definido por usuario Marco 7 | AC56: Abr. Marco 7
B57: 32 | AB57: Definido por usuario Marco 8 | AC57: Abr. Marco 8
B58: 32
B59: 32 | D59: 3.- Características térmicas de la envolvente | AB59: Muros transmitancia
B60: 32 | AB60: Nombre | AC60: Abreviatura | AD60: Tipología/materialidad | AE60: U [W/m2K] | AF60: espesor muro solido [cm] | AG60: espesor aislante [cm] | AH60: Posición Aislación
B61: 32 | D61: 3.1.- Area y coeficiente de transferencia de calor por elemento constructivo | AB61: Adiabatico | AC61: Muro Adiabatico | AD61: Pesado | AF61: 20 | AG61: 0 | AH61: Interior
B62: 32 | AB62: Definido por usuario Muro 1 | AC62: Abr. Muro 1 | AD62: Pesado | AE62: 0.21 | AF62: 15 | AG62: 16 | AH62: Exterior
B63: 32 | D63: Muros | E63: Ángulo Azimut | F63: Orientación | G63: Densidad Muro | H63: Area (m²) | I63: U [W/m²K] | K63: Puentes térmicos [ml] | O63: Posición Aislación | AB63: Definido por usuario Muro 2 | AC63: Abr. Muro 2 | AD63: Pesado | AE63: 0.4 | AF63: 15 | AG63: 6 | AH63: Interior
B64: 32 | K64: P01 | L64: P02 | M64: P03 | AB64: Definido por usuario Muro 3 | AC64: Abr. Muro 3 | AD64: Pesado | AE64: 0.5 | AF64: 15 | AG64: 1 | AH64: Interior
B65: 32 | AB65: Definido por usuario Muro 4 | AC65: Abr. Muro 4
B66: 33 | C66: Muro 1 | D66: Abr. Muro 1 | E66: 0° ≤ Az < 22,5° | F66: N | G66: Pesado | H66: 20.57182539 | I66: 0.21 | O66: Exterior | AB66: Definido por usuario Muro 5 | AC66: Abr. Muro 5
B67: 34 | C67: Muro 2 | D67: Muro Adiabatico | E67: 67,5° ≤ Az < 90° | F67: E | G67: Pesado | H67: 20.57182539 | I67: 0 | O67: Interior | AB67: Definido por usuario Muro 6 | AC67: Abr. Muro 6
B68: 35 | C68: Muro 3 | D68: Abr. Muro 1 | E68: 157,5° ≤ Az < 180° | F68: S | G68: Pesado | H68: 20.57182539 | I68: 0.21 | O68: Exterior | AB68: Definido por usuario Muro 7 | AC68: Abr. Muro 7
B69: 36 | C69: Muro 4 | D69: Abr. Muro 1 | E69: -112,5° ≤ Az < -90° | F69: O | G69: Pesado | H69: 20.57182539 | I69: 0.21 | O69: Exterior | AB69: Definido por usuario Muro 8 | AC69: Abr. Muro 8
B70: 37 | C70: Muro 5 | E70: 67,5° ≤ Az < 90° | F70: E | AB70: Definido por usuario Muro 9 | AC70: Abr. Muro 9
B71: 38 | C71: Muro 6 | E71: 0° ≤ Az < 22,5° | F71: N | AB71: Definido por usuario Muro 10 | AC71: Abr. Muro 10
B72: 39 | C72: Muro 7 | E72: -112,5° ≤ Az < -90° | F72: O | AB72: Definido por usuario Muro 11 | AC72: Abr. Muro 11
B73: 40 | C73: Muro 8 | E73: 67,5° ≤ Az < 90° | F73: E | AB73: Definido por usuario Muro 12 | AC73: Abr. Muro 12
B74: 41 | C74: Muro 9 | E74: 67,5° ≤ Az < 90° | F74: E | AB74: Definido por usuario Muro 13 | AC74: Abr. Muro 13
B75: 42 | C75: Muro 10 | E75: 0° ≤ Az < 22,5° | F75: N | AB75: Definido por usuario Muro 14 | AC75: Abr. Muro 14
B76: 43 | C76: Muro 11 | E76: 67,5° ≤ Az < 90° | F76: E
B77: 44 | C77: Muro 12 | E77: 67,5° ≤ Az < 90° | F77: E | AB77: Techos transmitancia
B78: 45 | C78: Muro 13 | E78: 67,5° ≤ Az < 90° | F78: E | AB78: Nombre | AC78: Abreviatura | AD78: U [W/m2K] | AF78: espesor techo solido [cm] | AG78: espesor aislante [cm] | AH78: Posición Aislación
B79: 46 | C79: Muro 14 | E79: 67,5° ≤ Az < 90° | F79: E | AB79: Adiabatico | AC79: Techo Adiabatico | AD79: 0 | AF79: 15 | AH79: Interior
B80: 47 | C80: Muro 15 | E80: 67,5° ≤ Az < 90° | F80: E | AB80: Definido por usuario Techo 1 | AC80: Abr. Techo 1 | AD80: 0.14 | AG80: 28 | AH80: Exterior
B81: 48 | C81: Muro 16 + .. | E81: 67,5° ≤ Az < 90° | F81: E | AB81: Definido por usuario Techo 2 | AC81: Abr. Techo 2 | AD81: 0.24 | AG81: 14 | AH81: Interior
B82: 48 | AB82: Definido por usuario Techo 3 | AC82: Abr. Techo 3 | AD82: 0.47 | AG82: 8 | AH82: Interior
B83: 48 | D83: Puentes térmicos particulares
B84: 48 | D84: Alojada en el muro | E84: Azimut | F84: Orientación | G84: Elemento perpendicular | H84: Aislación | I84: Longitud [m] | AB84: Pisos transmitancia
B85: 48 | AB85: Nombre | AC85: Abreviatura | AD85: U Piso ventilado | AE85: Aislación bajo piso contacto terreno | AG85: Refuerzo Aislación Vert. | AJ85: Refuerzo Aislación horiz. | AM85: Posición
B86: 48 | AD86: [W/m2K] | AE86: l [W/mK] | AF86: e aislante [cm] | AG86: l [W/mK] | AH86: e aislante [cm] | AI86: D [cm] | AJ86: l [W/mK] | AK86: e aislante [cm] | AL86: D [cm] | AM86: Aislación
B87: 49 | C87: P04 | E87: 0° ≤ Az < 22,5° | F87: N | AB87: Adiabatico | AC87: Piso Adiabatico | AD87: 0
B88: 50 | C88: P04 | E88: 90° ≤ Az < 112,5° | F88: E | AB88: Definido por usuario Piso 1 | AC88: Abr. Piso 1 | AD88: 0.21 | AE88: 0.04 | AF88: 15 | AG88: 0.04 | AH88: 10 | AI88: 60 | AM88: Exterior
B89: 51 | C89: P04 | E89: 0° ≤ Az < 22,5° | F89: N | AB89: Definido por usuario Piso 2 | AC89: Abr. Piso 2 | AD89: 0.39 | AE89: 0.04 | AF89: 5 | AG89: 0.04 | AH89: 5 | AI89: 60 | AM89: Interior
B90: 52 | C90: P04 | E90: 0° ≤ Az < 22,5° | F90: N | AB90: Definido por usuario Piso 3 | AC90: Abr. Piso 3 | AD90: 0.7 | AE90: 1.63 | AF90: 15 | AG90: 1.63 | AH90: 0 | AI90: 60 | AM90: Interior
B91: 53 | C91: P04 | E91: 0° ≤ Az < 22,5° | F91: N
B92: 53
B93: 53 | D93: Tipo Puerta | E93: Azimut | F93: Orientación | H93: Categoría para Infiltraciones | K93: Alto [m] | L93: Ancho [m] | N93: Área vidrio [m2] | P93: FAV 1 | R93: FAV 2 Izquierda | T93: FAV 2 Derecha | V93: FAV 3
B94: 53 | K94: (incluye marco) | P94: D | Q94: L | R94: P | S94: S | T94: P | U94: S | V94: E | W94: T | X94: b | Y94: a
B95: 53
B96: 54 | C96: Puerta 1 | E96: 90° ≤ Az < 112,5° | F96: E | H96: Madera Solida | N96: 0
B97: 55 | C97: Puerta 2 | F97: 0 | H97: Madera Solida | N97: 0
B98: 56 | C98: Puerta 3 | E98: 0° ≤ Az < 22,5° | F98: N | N98: 0
B99: 56
B100: 56 | D100: Tipo Ventana | E100: Azimut | F100: Orientación | G100: Elemento envolvente donde se encuentra | H100: Tipo de Cierre de ventana | I100: Posición Ventanal | J100: Aislación Con/Sin retorno | K100: Alto [m] (H) | L100: Ancho [m] (W) | M100: Categoría para PT y Infilt | N100: Tipo | P100: FAV 1 | R100: FAV 2 Izquierda | T100: FAV 2 Derecha | V100: FAV 3
B101: 56 | D101: Ventana (incluye marco) | M101: Marco | P101: D | Q101: L | R101: P | S101: S | T101: P | U101: S | V101: E | W101: T | X101: b | Y101: a
B102: 56
B103: 57 | C103: Ventana 1 | D103: DVH con 12mm | E103: 67,5° ≤ Az < 90° | F103: E | G103: Abr. Muro 1 | H103: Corredera | I103: Interior | J103: Con | K103: 1.25 | L103: 5 | M103: PVC | N103: Madera
B104: 58 | C104: Ventana 2 | D104: DVH con 12mm | E104: 0° ≤ Az < 22,5° | F104: N | G104: Abr. Muro 2 | H104: Corredera | I104: Interior | J104: Con | K104: 1.25 | L104: 5 | M104: PVC | N104: Madera
B105: 59 | C105: Ventana 3 | D105: DVH con 12mm | E105: -135° ≤ Az < -112,5° | F105: SO | G105: Abr. Muro 3 | H105: Corredera | I105: Interior | J105: Con | K105: 1.25 | L105: 5 | M105: PVC | N105: Madera
B106: 60 | C106: Ventana 4 | D106: DVH con 12mm | E106: -90° ≤ Az < -67,5° | F106: O | G106: Abr. Muro 4 | H106: Corredera | I106: Interior | J106: Con | K106: 1.25 | L106: 5 | M106: PVC | N106: Madera
B107: 61 | C107: Ventana 5 | F107: 0
B108: 62 | C108: Ventana 6 | F108: 0
B109: 63 | C109: Ventana 7 | F109: 0
B110: 64 | C110: Ventana 8 | F110: 0
B111: 65 | C111: Ventana 9 | F111: 0
B112: 66 | C112: Ventana 10 | F112: 0
B113: 67 | C113: Ventana 11 | F113: 0
B114: 68 | C114: Ventana 12 | F114: 0
B115: 69 | C115: Ventana 13 | F115: 0
B116: 70 | C116: Ventana 14 | F116: 0
B117: 71 | C117: Ventana 15 | F117: 0
B118: 72 | C118: Ventana 16 | F118: 0
B119: 73 | C119: Ventana 17 | F119: 0
B120: 74 | C120: Ventana 18 | F120: 0
B121: 75 | C121: Ventana 19 | F121: 0
B122: 76 | C122: Ventana 20 | F122: 0
B124: 76 | E124: % Anual referencial Rad Directa | H124: 1 | J124: % Anual referencial Rad Directa | M124: 1 | O124: % Anual referencial Rad Directa | R124: 1 | T124: % Anual referencial Rad Directa | W124: 1
B125: 77 | C125: Orientación | E125: N | F125: Azimut | G125: -22,5° ≤ Az < 0° | J125: E | K125: Azimut | L125: 67,5° ≤ Az < 90° | O125: S | P125: Azimut | T125: O | U125: Azimut
B126: 78 | C126: Dimensiones | E126: División | F126: A [m] | G126: B [m] | H126: D [m] | J126: División | K126: A [m] | L126: B [m] | M126: D [m] | O126: División | P126: A [m] | Q126: B [m] | R126: D [m] | T126: División | U126: A [m] | V126: B [m] | W126: D [m]
B127: 79 | C127: Obstrucción 1
B128: 80 | C128: Obstrucción 2
B129: 81 | C129: Obstrucción 3
B130: 82 | C130: Obstrucción 4
B131: 83 | C131: Obstrucción 5
B132: 84 | C132: Obstrucción 6
B133: 85 | C133: Obstrucción 7
B134: 86 | C134: Obstrucción 8
B136: 86 | E136: % Anual referencial Rad Directa | H136: 1 | J136: % Anual referencial Rad Directa | M136: 1 | O136: % Anual referencial Rad Directa | R136: 1 | T136: % Anual referencial Rad Directa | W136: 1
B137: 87 | C137: Orientación | E137: NE | F137: Azimut | J137: SE | K137: Azimut | O137: SO | P137: Azimut | T137: NO | U137: Azimut
B138: 88 | C138: Dimensiones | E138: División | F138: A [m] | G138: B [m] | H138: D [m] | J138: División | K138: A [m] | L138: B [m] | M138: D [m] | O138: División | P138: A [m] | Q138: B [m] | R138: D [m] | T138: División | U138: A [m] | V138: B [m] | W138: D [m]
B139: 89 | C139: Obstrucción 1
B140: 90 | C140: Obstrucción 2
B141: 91 | C141: Obstrucción 3
B142: 92 | C142: Obstrucción 4
B143: 93 | C143: Obstrucción 5
B144: 94 | C144: Obstrucción 6
B145: 95 | C145: Obstrucción 7
B146: 96 | C146: Obstrucción 8
B147: 96
B148: 96 | D148: Techos | F148: Densidad Techo | G148: Area (m²) | H148: U [W/m²K] | K148: Camaras de aire | L148: Tipo de cubierta | N148: Posición Aislación
B149: 96
B150: 97 | C150: Techo 1 | D150: Abr. Techo 2 | F150: Pesado | G150: 80 | H150: 0.24 | K150: Sin camara | L150: Cubierta normal | N150: Interior
B151: 98 | C151: Techo 2
B152: 99 | C152: Techo 3
B153: 100 | C153: Techo 4
B154: 101 | C154: Techo 5+..
B155: 101
B156: 101 | D156: Pisos | F156: Densidad Piso | G156: Area (m²) | H156: U [W/m²K] | K156: Perímetro contacto terreno [m] | L156: Piso ventilado | N156: Posición Aislación | R156: Ls [W/K]
B157: 101
B158: 102 | C158: Piso 1 | D158: Abr. Piso 1 | F158: Pesado | G158: 80 | H158: 0.21 | L158: Ventilado | N158: Exterior | R158: 0
B159: 103 | C159: Piso 2 | L159: No Ventilado | R159: 0
B160: 104 | C160: Piso 3 | L160: No Ventilado | R160: 0
B161: 105 | C161: Piso 4+.. | L161: No Ventilado | R161: 0
B162: 105
B163: 105
B164: 105 | D164: Resumen Envolvente
B165: 105
B166: 105 | D166: Elementos Opacos | H166: Elementos traslucidos | K166: Perdidas Puentes térmicos
B167: 105 | D167: Área total [m2] | E167: Área Efectiva [m2] | F167: U [W/Km²] | H167: Área [m2] | I167: U [W/Km²] | K167: P01 | L167: P02 | M167: P03 | N167: P04 | O167: P05 | P167: Total | S167: U*A + jL [W/K] | U167: [m2] Envolvente no adiabatica
B168: 105 | U168: 246.7154762
B169: 106 | C169: Horiz | D169: 80 | E169: 80 | F169: 0.24 | H169: 0 | I169: 0 | R169: Techos | S169: 19.2
B170: 107 | C170: N | D170: 21.82182539 | E170: 1.25 | F170: 5.8 | H170: 5 | I170: 2.85 | K170: 0 | L170: 0 | M170: 0 | N170: 0 | O170: 0.25 | P170: 0.25 | R170: N | S170: 21.75
B171: 108 | C171: NE | D171: 0 | E171: 0 | F171: 0 | H171: 0 | I171: 0 | K171: 0 | L171: 0 | M171: 0 | N171: 0 | O171: 0 | P171: 0 | R171: NE | S171: 0
B172: 109 | C172: E | D172: 20.57182539 | E172: 20.57182539 | F172: 0.21 | H172: 0 | I172: 0 | K172: 0 | L172: 0 | M172: 0 | N172: 0 | O172: 0 | P172: 0 | R172: E | S172: 4.320083333
B173: 110 | C173: SE | D173: 1.25 | E173: 1.25 | F173: 5.8 | H173: 5 | I173: 2.85 | K173: 0 | L173: 0 | M173: 0 | N173: 0 | O173: 0.25 | P173: 0.25 | R173: SE | S173: 21.75
B174: 111 | C174: S | D174: 21.82182539 | E174: 21.82182539 | F174: 0.530206943 | H174: 5 | I174: 2.85 | K174: 0 | L174: 0 | M174: 0 | N174: 0 | O174: 0 | P174: 0 | R174: S | S174: 25.82008333
B175: 112 | C175: SO | D175: 0 | E175: 0 | F175: 0 | H175: 0 | I175: 0 | K175: 0 | L175: 0 | M175: 0 | N175: 0 | O175: 0 | P175: 0 | R175: SO | S175: 0
B176: 113 | C176: O | D176: 21.82182539 | E176: 21.82182539 | F176: 0.530206943 | H176: 5 | I176: 2.85 | K176: 0 | L176: 0 | M176: 0 | N176: 0 | O176: 0.25 | P176: 0.25 | R176: O | S176: 26.07008333
B177: 114 | C177: NO | D177: 0 | E177: 0 | F177: 0 | H177: 0 | I177: 0 | K177: 0 | L177: 0 | M177: 0 | N177: 0 | O177: 0 | P177: 0 | R177: NO | S177: 0
B178: 115 | C178: Pisos | D178: 80 | E178: 80 | F178: 0.21 | J178: Pisos Ls | P178: 0 | R178: Pisos [ml] | S178: 16.8
B179: 115
B180: 115
B181: 115
B182: 115 | D182: 4.- Perfil de uso
B183: 115
B184: 115 | D184: 4.1.- Condiciones de uso de la vivienda
B185: 115
B186: 115 | I186: Cargas internas [W/m2]
B187: 115 | I187: Enero | J187: Febrero | K187: Marzo | L187: Abril | M187: Mayo | N187: Junio | O187: Julio | P187: Agosto | Q187: Septiembre | R187: Octubre | S187: Noviembre | T187: Diciembre
B188: 115 | H188: 0 | I188: 4.1 | J188: 4.1 | K188: 4.1 | L188: 4.1 | M188: 4.1 | N188: 4.1 | O188: 4.1 | P188: 4.1 | Q188: 4.1 | R188: 4.1 | S188: 4.1 | T188: 4.1
B189: 115 | H189: 1 | I189: 4.1 | J189: 4.1 | K189: 4.1 | L189: 4.1 | M189: 4.1 | N189: 4.1 | O189: 4.1 | P189: 4.1 | Q189: 4.1 | R189: 4.1 | S189: 4.1 | T189: 4.1
B190: 115 | H190: 2 | I190: 4.1 | J190: 4.1 | K190: 4.1 | L190: 4.1 | M190: 4.1 | N190: 4.1 | O190: 4.1 | P190: 4.1 | Q190: 4.1 | R190: 4.1 | S190: 4.1 | T190: 4.1
B191: 115 | E191: [W/m2] | H191: 3 | I191: 4.1 | J191: 4.1 | K191: 4.1 | L191: 4.1 | M191: 4.1 | N191: 4.1 | O191: 4.1 | P191: 4.1 | Q191: 4.1 | R191: 4.1 | S191: 4.1 | T191: 4.1
B192: 115 | H192: 4 | I192: 4.1 | J192: 4.1 | K192: 4.1 | L192: 4.1 | M192: 4.1 | N192: 4.1 | O192: 4.1 | P192: 4.1 | Q192: 4.1 | R192: 4.1 | S192: 4.1 | T192: 4.1
B193: 115 | E193: Diurna | F193: Nocturna | H193: 5 | I193: 4.1 | J193: 4.1 | K193: 4.1 | L193: 4.1 | M193: 4.1 | N193: 4.1 | O193: 4.1 | P193: 4.1 | Q193: 4.1 | R193: 4.1 | S193: 4.1 | T193: 4.1
B194: 116 | C194: Usuarios | E194: 4.92 | F194: 4.1 | H194: 6 | I194: 3.28 | J194: 3.28 | K194: 3.28 | L194: 3.28 | M194: 3.28 | N194: 3.28 | O194: 3.28 | P194: 3.28 | Q194: 3.28 | R194: 3.28 | S194: 3.28 | T194: 3.28
B195: 117 | C195: Iluminación cuando luz natural < 250 Lux | E195: 1.5 | F195: 0 | G195: 135.36 | H195: 7 | I195: 3.936 | J195: 3.936 | K195: 3.936 | L195: 3.936 | M195: 5.436 | N195: 5.436 | O195: 5.436 | P195: 3.936 | Q195: 3.936 | R195: 3.936 | S195: 3.936 | T195: 3.936
B196: 117 | H196: 8 | I196: 1.968 | J196: 1.968 | K196: 1.968 | L196: 1.968 | M196: 1.968 | N196: 1.968 | O196: 1.968 | P196: 1.968 | Q196: 1.968 | R196: 1.968 | S196: 1.968 | T196: 1.968
B197: 117 | H197: 9 | I197: 1.23 | J197: 1.23 | K197: 1.23 | L197: 1.23 | M197: 1.23 | N197: 1.23 | O197: 1.23 | P197: 1.23 | Q197: 1.23 | R197: 1.23 | S197: 1.23 | T197: 1.23
B198: 117 | H198: 10 | I198: 1.23 | J198: 1.23 | K198: 1.23 | L198: 1.23 | M198: 1.23 | N198: 1.23 | O198: 1.23 | P198: 1.23 | Q198: 1.23 | R198: 1.23 | S198: 1.23 | T198: 1.23
B199: 117 | H199: 11 | I199: 1.23 | J199: 1.23 | K199: 1.23 | L199: 1.23 | M199: 1.23 | N199: 1.23 | O199: 1.23 | P199: 1.23 | Q199: 1.23 | R199: 1.23 | S199: 1.23 | T199: 1.23
B200: 117 | H200: 12 | I200: 1.23 | J200: 1.23 | K200: 1.23 | L200: 1.23 | M200: 1.23 | N200: 1.23 | O200: 1.23 | P200: 1.23 | Q200: 1.23 | R200: 1.23 | S200: 1.23 | T200: 1.23
B201: 117 | H201: 13 | I201: 1.23 | J201: 1.23 | K201: 1.23 | L201: 1.23 | M201: 1.23 | N201: 1.23 | O201: 1.23 | P201: 1.23 | Q201: 1.23 | R201: 1.23 | S201: 1.23 | T201: 1.23
B202: 117 | H202: 14 | I202: 1.23 | J202: 1.23 | K202: 1.23 | L202: 1.23 | M202: 1.23 | N202: 1.23 | O202: 1.23 | P202: 1.23 | Q202: 1.23 | R202: 1.23 | S202: 1.23 | T202: 1.23
B203: 117 | H203: 15 | I203: 1.23 | J203: 1.23 | K203: 1.23 | L203: 1.23 | M203: 1.23 | N203: 1.23 | O203: 1.23 | P203: 1.23 | Q203: 1.23 | R203: 1.23 | S203: 1.23 | T203: 1.23
B204: 117 | H204: 16 | I204: 1.476 | J204: 1.476 | K204: 1.476 | L204: 1.476 | M204: 1.476 | N204: 1.476 | O204: 1.476 | P204: 1.476 | Q204: 1.476 | R204: 1.476 | S204: 1.476 | T204: 1.476
B205: 117 | H205: 17 | I205: 2.46 | J205: 2.46 | K205: 2.46 | L205: 2.46 | M205: 2.46 | N205: 2.46 | O205: 2.46 | P205: 2.46 | Q205: 2.46 | R205: 2.46 | S205: 2.46 | T205: 2.46
... 34 more rows

Sheet Calculo
C2: Parámetros de operación | H2: DATOS RECINTO:
B4: Recup. de calor. | C4: No | D4: [ ] | G4: Elementos Opacos | K4: Elementos traslucidos | N4: Puentes térmicos
B5: Eficiencia recup. | C5: 0 | D5: [ ] | G5: Área total [m2] | H5: Área Efectiva [m2] | I5: U [W/Km²] | K5: Área [m2] | L5: U [W/Km²] | N5: [W/K]
B6: Sistema de clima. | C6: No | D6: [ ]
F8: TECHO | G8: 80 | H8: 80 | I8: 0.84 | K8: 0 | L8: 3.6
F9: NORTE: | G9: 21.82182539 | H9: 1.25 | I9: 4 | K9: 5 | L9: 5.8 | N9: 0.25
F10: NOR-ESTE: | G10: 0 | H10: 0 | I10: 0 | K10: 0 | L10: 0 | N10: 0
F11: ESTE: | G11: 20.57182539 | H11: 20.57182539 | I11: 4 | K11: 0 | L11: 5.8 | N11: 0
F12: SUR-ESTE: | G12: 1.25 | H12: 1.25 | I12: 4 | K12: 5 | L12: 5.8 | N12: 0.25
F13: SUR: | G13: 21.82182539 | H13: 21.82182539 | I13: 4 | K13: 5 | L13: 5.8 | N13: 0
F14: SUR-OESTE: | G14: 0 | H14: 0 | I14: 0 | K14: 0 | L14: 0 | N14: 0
F15: OESTE: | G15: 21.82182539 | H15: 21.82182539 | I15: 4 | K15: 5 | L15: 5.8 | N15: 0.25
F16: NOR-OESTE: | G16: 0 | H16: 0 | I16: 0 | K16: 0 | L16: 0 | N16: 0
F17: PISO: | G17: 80 | H17: 80 | I17: 3.6 | N17: 0
G20: Area [m²] | H20: Altura [m] | I20: Volumen [m3]
F22: Piso 1 | G22: 80 | H22: 2.5 | I22: 200
F23: Piso 2 | G23: 0 | H23: 0 | I23: 0
F24: Piso 3+4+.. | G24: 0 | H24: 0 | I24: 0
F26: Total | G26: 80 | I26: 200

Sheet Resultados (hidden)
A1: =+COUNTA(C6:C1048576)/25*26+6 -> 6 | B1: Fila a insertar datos (NO borrar)
A2: =+Calculo!C23 -> 0
C4: 1 | D4: 2 | E4: 3 | F4: 4 | G4: 5 | H4: 6 | I4: 7 | J4: 8 | K4: 9 | L4: 10 | M4: 11 | N4: 12 | O4: 13 | P4: 14 | Q4: 15 | R4: 16 | S4: 17 | T4: 18 | U4: 19 | V4: 20 | W4: 21 | X4: 22 | Y4: 23 | Z4: 24 | AA4: 25 | AB4: 26 | AC4: 27 | AD4: 28 | AE4: 29 | AF4: 30 | AG4: 31 | AH4: 32 | AI4: 33 | AJ4: 34
C5: Tiempo [hrs] | D5: Tiempo [s] | E5: Mes | F5: T° exterior | G5: Qsol_ef tot [W] | H5: Qgen pers [W] | I5: Qgen ilum [W] | J5: Qgen equip [W] | K5: TsolH | L5: TsolN | M5: TsolNE | N5: TsolE | O5: TsolSE | P5: TsolS | Q5: TsolSO | R5: TsolO | S5: TsolNO | T5: T Interior [°C] | U5: Q Envolvente [W] | V5: Q Piso_vent [W] | W5: Q Ventanas [W] | X5: Q Techo [W] | Y5: Q Muros [W] | Z5: Q Piso_terreno [W] | AA5: Q Ventilacion [W] | AB5: Q Recuperado [W] | AC5: Q Infiltraciones [W] | AD5: QClima [W] | AF5: Q Masa_tot [W] | AG5: TmasaHOR [°C] | AH5: Q Masa_ad [W] | AI5: Demanda Calef. [Wh] | AJ5: Demanda Ref. [Wh] | AK5: Qtot [W] | AL5: Q_techo_v [W] | AM5: Q_techo_opaco [W] | AN5: Q_norte_v [W] | AO5: Q_norte_opaco [W] | AP5: Q_noreste_v [W] | AQ5: Q_noreste_opaco [W] | AR5: Q_este_v [W] | AS5: Q_este_opaco [W] | AT5: Q_sureste_v [W] | AU5: Q_sureste_opaco [W] | AV5: Q_sur_v [W] | AW5: Q_sur_opaco [W] | AX5: Q_suroeste_v [W] | AY5: Q_suroeste_opaco [W] | AZ5: Q_oeste_v [W] | BA5: Q_oeste_opaco [W] | BB5: Q_noroeste_v [W] | BC5: Q_noroeste_opaco [W] | BD5: Q_piso_vent_SA [W] | BE5: Q_piso_terre_SA [W]
